Workbook

Sheet 1. Ajuste horas formación
B2: Organización Proyectos FP Dual Intensiva Grados D
G3: Curso académico | H3: 2025 / 2026
J4: Criterio de colores de celdas
B5: CENTRO FORMATIVO: | C5: IES Ejemplo de Centro | K5: Deben rellenarse sus datos
B6: CÓDIGO DEL CICLO FORMATIVO: | C6: ADG201 (LFP) | K6: Son resultados de cálculo | P6: Dualizado | Q6: Coexiste formación en centro educativo con jornada trabajo en misma semana | T6: NO | U6: Contrato formación en alternancia
B7: TÍTULO FP VINCULADO AL PROYECTO: | D7: =VLOOKUP(C6,Módulos!A$2:B$3000,2,FALSE) -> Gestión Administrativa | P7: No dualizado | Q7: Semanas alternas formación en centro y laborales, no coexiste formación centro y trabajo en misma semana | T7: SI | U7: Beca formación
B10: Información horas máximas a realizar en empresa y RA mínimos a dualizar
P11: =1000/30 -> 33.33333333
B12: =IF(C6<>"TMV302 (LFP)","Nº horas realizadas en 1º curso en Dual General en empresa","Nº horas realizadas en 2º curso en Dual General en empresa") -> Nº horas realizadas en 1º curso en Dual General en empresa | E12: 140 | G12: =IF(C6<>"TMV302 (LFP)","Nº RA realizados en 1º curso","Nº RA realizados en 2º curso") -> Nº RA realizados en 1º curso | K12: 5 | P12: =IF(J21="SI",Mod_sem_min_1año,Sem_min_1año) -> 0 | R12: 700
B13: =IF(C6<>"TMV302 (LFP)","Nº máximo de horas a realizar en empresa en 2º curso en Dual Intensiva","Nº máximo horas a realizar en empresa en 3º curso en Dual Intensiva") -> Nº máximo de horas a realizar en empresa en 2º curso en Dual Intensiva | E13: =IF(C6<>"TMV302 (LFP)",Max_horas_en_empresa_en_total-E12,0.5*2762-E12) -> 860 | G13: =IF(C6<>"TMV302 (LFP)","Nº RA mínimo a realizar en 2º curso","Nº RA mínimo a realizar en 3º curso") -> Nº RA mínimo a realizar en 2º curso | K13: =ROUND(IF(C6="","",VLOOKUP(C6,'Ciclos Nº RA'!B4:F122,5,FALSE))*P18-K12,0) -> 19 | P13: =IF(ROUNDUP(MAX(J29:J43),0)>Semanas_max_en_2,Semanas_max_en_2,ROUNDUP(MAX(J29:J43),0)) -> 0 | R13: 20 | S13: (horas máximas / semana coexistencia formación empresa - trabajo por Resolución Proyecto)
P14: =IF(Tipo_relación_laboral="Beca formación",F44/I22,0.35) -> 0.35 | Q14: =ROUND(P14*100,0) -> 35
B15: Información modelo alternancia y datos de la relación laboral | P15: 1000 | Q15: nº máximo horas a en empresa entre 1º y 2º curso
P16: 700 | Q16: nº mínimo horas a en empresa entre 2º curso
B17: Tipo proyecto modelo de alternancia | C17: Semanas alternas formación en centro y laborales, no coexiste formación centro y trabajo en misma semana
B18: Tipo de relación laboral | C18: Contrato formación en alternancia | P18: 0.3 | Q18: Nº RA mínimos en empresa
K19: Nº horas máximas docencia/semana | P19: 0.35 | Q19: % Mínimo horas de formación en centro
B20: Horas convenio en empresa | C20: 1780 | F20: Días contrato | I20: =C22-C21+1 -> 281 | K20: =IF(C17=$Q$6,R13,30) -> 30
B21: Incio contrato | C21: 2025-09-12 | F21: Días vacaciones | I21: =I20*22/365 -> 16.9369863
B22: Final contrato | C22: 2026-06-19 | H22: Horas máximas contrato (centro+empresa) | I22: =ROUND(Horas_convenio*I20/365,0) -> 1370
H23: =IF(K20="SI",IF(Mod_sem_min_1año<Sem_min_1año,"Debe incrementar semanas mínimas a dualizar",""),"") -> 
H24: Distribución horaria en centro formativo
H25: Semanas 1º periodo | I25: Semanas 2º periodo
B27: CÓDIGO - NOMBRE DEL MÓDULO | D27: DATOS CURRICULARES DE LOS MÓDULOS | G27: PROYECTO DUAL EN RÉGIMEN INTENSIVO
D28: HORAS MÓDULOS FIJADAS EN EL CURRÍCULO | E28: Nº HORAS / SEMANA DE MÓDULOS | F28: Nº HORAS MÍNIMAS FORMACIÓN EN CENTRO | G28: TIPO MÓDULO | H28: Nº horas/semana impartidas en CENTRO 1º periodo | I28: Nº horas/semana impartidas en CENTRO 2º periodo | J28: ESTIMACIÓN SEMANAS MÍNIMAS DUALIZADAS con sólo 1º periodo | K28: HORAS FORMACIÓN EN EL CENTRO | L28: HORAS FORMACIÓN EN LA EMPRESA
A29: 1 | B29: =IF(VLOOKUP(C$6,'Ciclos Nº RA'!B$4:V$123,9+A29,FALSE)="","",(VLOOKUP(C$6,'Ciclos Nº RA'!B$4:V$123,9+A29,FALSE))) -> 0442 - Operaciones Administrativas de Recursos Humanos | D29: =IF(B29="","",VLOOKUP(CONCATENATE($C$6," - ",MID(B29,1,4)),Módulos!$E$2:$H$3000,4,FALSE)) -> 167 | E29: =IF(B29="","",VLOOKUP(CONCATENATE($C$6," - ",MID(B29,1,4)),Módulos!$E$2:$H$3000,3,FALSE)) -> 5 | F29: =IF(OR(B29="",G29=""),"",ROUND(IF(G29="Dualizado",D29*Porcentaje_min_en_centro,D29),0)) ->  | J29: =IF(OR(B29="",G29="",H29=""),"",IF(G29="Dualizado",ROUND(IF(H29="","",F29/H29),0),"")) ->  | K29: =IF(AND(G29<>"",OR(H29<>"",I29<>"")),IF(G29="No dualizado",IF(AND((H29*Horas_1_periodo+I29*Horas_2_periodo)>=F29-1,(H29*Horas_1_periodo+I29*Horas_2_periodo)<=F29+1),F29,H29*Horas_1_periodo+I29*Horas_2_periodo),H29*Horas_1_periodo+I29*Horas_2_periodo),"") ->  | L29: =IF(OR(B29="",K29=""),"",IF(G29="Dualizado",D29-K29,"")) ->  | M29: =IF(F29="","",IF(K29="","Falta definir horas/semana",IF(F29>K29,"Debe incremetar horas del módulo",IF(K29>D29,"Debe reducir horas formación","")))) -> 
A30: =A29+1 -> 2 | B30: =IF(VLOOKUP(C$6,'Ciclos Nº RA'!B$4:V$123,9+A30,FALSE)="","",(VLOOKUP(C$6,'Ciclos Nº RA'!B$4:V$123,9+A30,FALSE))) -> 0443 - Tratamiento de la Documentación Contable | D30: =IF(B30="","",VLOOKUP(CONCATENATE($C$6," - ",MID(B30,1,4)),Módulos!$E$2:$H$3000,4,FALSE)) -> 167 | E30: =IF(B30="","",VLOOKUP(CONCATENATE($C$6," - ",MID(B30,1,4)),Módulos!$E$2:$H$3000,3,FALSE)) -> 5 | J30: =IF(OR(B30="",G30="",H30=""),"",IF(G30="Dualizado",ROUND(IF(H30="","",F30/H30),0),"")) ->  | M30: =IF(F30="","",IF(K30="","Falta definir horas/semana",IF(F30>K30,"Debe incremetar horas del módulo",IF(K30>D30,"Debe reducir horas formación","")))) -> 
A31: =A30+1 -> 3 | B31: =IF(VLOOKUP(C$6,'Ciclos Nº RA'!B$4:V$123,9+A31,FALSE)="","",(VLOOKUP(C$6,'Ciclos Nº RA'!B$4:V$123,9+A31,FALSE))) -> 0446 - Empresa en el aula | D31: =IF(B31="","",VLOOKUP(CONCATENATE($C$6," - ",MID(B31,1,4)),Módulos!$E$2:$H$3000,4,FALSE)) -> 200 | E31: =IF(B31="","",VLOOKUP(CONCATENATE($C$6," - ",MID(B31,1,4)),Módulos!$E$2:$H$3000,3,FALSE)) -> 6
A32: 4 | B32: =IF(VLOOKUP(C$6,'Ciclos Nº RA'!B$4:V$123,9+A32,FALSE)="","",(VLOOKUP(C$6,'Ciclos Nº RA'!B$4:V$123,9+A32,FALSE))) -> 0448 - Operaciones Auxiliares de Gestión de Tesorería | D32: =IF(B32="","",VLOOKUP(CONCATENATE($C$6," - ",MID(B32,1,4)),Módulos!$E$2:$H$3000,4,FALSE)) -> 167 | E32: =IF(B32="","",VLOOKUP(CONCATENATE($C$6," - ",MID(B32,1,4)),Módulos!$E$2:$H$3000,3,FALSE)) -> 5
A33: 5 | B33: =IF(VLOOKUP(C$6,'Ciclos Nº RA'!B$4:V$123,9+A33,FALSE)="","",(VLOOKUP(C$6,'Ciclos Nº RA'!B$4:V$123,9+A33,FALSE))) -> 1708 - Sostenibilidad aplicada al sistema productivo | D33: =IF(B33="","",VLOOKUP(CONCATENATE($C$6," - ",MID(B33,1,4)),Módulos!$E$2:$H$3000,4,FALSE)) -> 33 | E33: =IF(B33="","",VLOOKUP(CONCATENATE($C$6," - ",MID(B33,1,4)),Módulos!$E$2:$H$3000,3,FALSE)) -> 1
A34: 6 | B34: =IF(VLOOKUP(C$6,'Ciclos Nº RA'!B$4:V$123,9+A34,FALSE)="","",(VLOOKUP(C$6,'Ciclos Nº RA'!B$4:V$123,9+A34,FALSE))) -> 1710 - Itinerario personal para la empleabilidad II | D34: =IF(B34="","",VLOOKUP(CONCATENATE($C$6," - ",MID(B34,1,4)),Módulos!$E$2:$H$3000,4,FALSE)) -> 67 | E34: =IF(B34="","",VLOOKUP(CONCATENATE($C$6," - ",MID(B34,1,4)),Módulos!$E$2:$H$3000,3,FALSE)) -> 2
A35: 7 | B35: =IF(VLOOKUP(C$6,'Ciclos Nº RA'!B$4:V$123,9+A35,FALSE)="","",(VLOOKUP(C$6,'Ciclos Nº RA'!B$4:V$123,9+A35,FALSE))) ->  | D35: =IF(B35="","",VLOOKUP(CONCATENATE($C$6," - ",MID(B35,1,4)),Módulos!$E$2:$H$3000,4,FALSE)) ->  | E35: =IF(B35="","",VLOOKUP(CONCATENATE($C$6," - ",MID(B35,1,4)),Módulos!$E$2:$H$3000,3,FALSE)) -> 
A36: 8 | B36: =IF(VLOOKUP(C$6,'Ciclos Nº RA'!B$4:V$123,9+A36,FALSE)="","",(VLOOKUP(C$6,'Ciclos Nº RA'!B$4:V$123,9+A36,FALSE))) ->  | D36: =IF(B36="","",VLOOKUP(CONCATENATE($C$6," - ",MID(B36,1,4)),Módulos!$E$2:$H$3000,4,FALSE)) ->  | E36: =IF(B36="","",VLOOKUP(CONCATENATE($C$6," - ",MID(B36,1,4)),Módulos!$E$2:$H$3000,3,FALSE)) -> 
A37: 9 | B37: =IF(VLOOKUP(C$6,'Ciclos Nº RA'!B$4:V$123,9+A37,FALSE)="","",(VLOOKUP(C$6,'Ciclos Nº RA'!B$4:V$123,9+A37,FALSE))) ->  | D37: =IF(B37="","",VLOOKUP(CONCATENATE($C$6," - ",MID(B37,1,4)),Módulos!$E$2:$H$3000,4,FALSE)) ->  | E37: =IF(B37="","",VLOOKUP(CONCATENATE($C$6," - ",MID(B37,1,4)),Módulos!$E$2:$H$3000,3,FALSE)) -> 
A38: 10 | B38: =IF(VLOOKUP(C$6,'Ciclos Nº RA'!B$4:V$123,9+A38,FALSE)="","",(VLOOKUP(C$6,'Ciclos Nº RA'!B$4:V$123,9+A38,FALSE))) ->  | D38: =IF(B38="","",VLOOKUP(CONCATENATE($C$6," - ",MID(B38,1,4)),Módulos!$E$2:$H$3000,4,FALSE)) ->  | E38: =IF(B38="","",VLOOKUP(CONCATENATE($C$6," - ",MID(B38,1,4)),Módulos!$E$2:$H$3000,3,FALSE)) -> 
A39: 11 | B39: =IF(VLOOKUP(C$6,'Ciclos Nº RA'!B$4:V$123,9+A39,FALSE)="","",(VLOOKUP(C$6,'Ciclos Nº RA'!B$4:V$123,9+A39,FALSE))) ->  | D39: =IF(B39="","",VLOOKUP(CONCATENATE($C$6," - ",MID(B39,1,4)),Módulos!$E$2:$H$3000,4,FALSE)) ->  | E39: =IF(B39="","",VLOOKUP(CONCATENATE($C$6," - ",MID(B39,1,4)),Módulos!$E$2:$H$3000,3,FALSE)) -> 
A40: 12 | B40: =IF(VLOOKUP(C$6,'Ciclos Nº RA'!B$4:V$123,9+A40,FALSE)="","",(VLOOKUP(C$6,'Ciclos Nº RA'!B$4:V$123,9+A40,FALSE))) ->  | D40: =IF(B40="","",VLOOKUP(CONCATENATE($C$6," - ",MID(B40,1,4)),Módulos!$E$2:$H$3000,4,FALSE)) ->  | E40: =IF(B40="","",VLOOKUP(CONCATENATE($C$6," - ",MID(B40,1,4)),Módulos!$E$2:$H$3000,3,FALSE)) -> 
A41: 13 | B41: =IF(C6="","",IF(MID(C6,4,1)="2","A996 - Tutoría II",IF(C6="TMV302 (LFP)","1710 - Itinerario personal para la Empleabilidad II","0OPT - Módulo profesional optativo"))) -> A996 - Tutoría II | D41: =IF(B41="","",VLOOKUP(CONCATENATE($C$6," - ",MID(B41,1,4)),Módulos!$E$2:$H$3000,4,FALSE)) -> 33 | E41: =IF(B41="","",VLOOKUP(CONCATENATE($C$6," - ",MID(B41,1,4)),Módulos!$E$2:$H$3000,3,FALSE)) -> 1
A42: 14 | B42: =IF(C6="","",IF(MID(C6,4,1)="2","1713 - Proyecto intermodular","")) -> 1713 - Proyecto intermodular | D42: =IF(B42="","",VLOOKUP(CONCATENATE($C$6," - ",MID(B42,1,4)),Módulos!$E$2:$H$3000,4,FALSE)) -> 67 | E42: =IF(B42="","",VLOOKUP(CONCATENATE($C$6," - ",MID(B42,1,4)),Módulos!$E$2:$H$3000,3,FALSE)) -> 2
A43: 15 | B43: =IF(C6="","",IF(MID(C6,4,1)="2","0OPT - Módulo profesional optativo","")) -> 0OPT - Módulo profesional optativo | D43: =IF(B43="","",VLOOKUP(CONCATENATE($C$6," - ",MID(B43,1,4)),Módulos!$E$2:$H$3000,4,FALSE)) -> 100 | E43: =IF(B43="","",VLOOKUP(CONCATENATE($C$6," - ",MID(B43,1,4)),Módulos!$E$2:$H$3000,3,FALSE)) -> 3
D44: =IF(AND(SUM(D29:D43)>998,SUM(D29:D43)<1002),1000,SUM(D29:D43)) -> 1000 | E44: =SUM(E29:E43) -> 30 | F44: =SUM(F29:F43) -> 0 | H44: =IF(Horas_max_semana=20,IF(SUM(H29:H43)>Horas_max_semana,CONCATENATE("Reducir horas < ",SUM(H29:H43)),SUM(H29:H43)),IF(SUM(H29:H43)=30,30,CONCATENATE("Corregir (30) <> ",SUM(H29:H43)))) -> Corregir (30) <> 0 | I44: =IF(Horas_max_semana<SUM(I29:I43),CONCATENATE("Debe reducir < ",SUM(I29:I43)),SUM(I29:I43)) -> 0 | J44: =CONCATENATE("Estimación semanas mínimas a dualizar con sólo 1º periodo = ",ROUND(Sem_1,0)) -> Estimación semanas mínimas a dualizar con sólo 1º periodo = 0 | K44: =ROUND(SUM(K29:K43),0) -> 0 | L44: =SUM(L29:L43) -> 0
K45: =IF(AND(SUM(K29:L43)>998,SUM(K29:L43)<1002),1000,SUM(K44:L44)) -> 0
H46: Porcentaje horas formación en centro respecto horas máximas contrato = | K46: =IF(Horas_convenio="","",IF(K44=0,"",K44/I22)) -> 
H47: =IF(Tipo_relación_laboral="Beca formación",IF(F44>K44,CONCATENATE("Debe incrementar el nº horas en centro > ",F44),""),IF(K46<P14,CONCATENATE("Incrementar horas formación, % debe ser >= ",Q14," %"),"")) ->  | K47: =IF(COUNTBLANK(M29:M43)=15,"Cumple ajustes mínimos de módulos","Debe corregir horas módulos") -> Cumple ajustes mínimos de módulos

Sheet 2. Distribución centro+empresa
C2: Calendario FP-DUAL Intensiva | U2: Año académico: | V2: =MID('1. Ajuste horas formación'!H3,1,4) -> 2025 | X2: / | Y2: =AñoActual+1 -> 2026
C4: Centro | E4: =IF('1. Ajuste horas formación'!C5="","",'1. Ajuste horas formación'!C5) -> IES Ejemplo de Centro
C5: Ciclo | E5: =IF('1. Ajuste horas formación'!C6="","",'1. Ajuste horas formación'!C6) -> ADG201 (LFP)
C6: Ciclo | E6: =IF('1. Ajuste horas formación'!D7="","",'1. Ajuste horas formación'!D7) -> Gestión Administrativa
C8: Inicio contrato | G8: ='1. Ajuste horas formación'!C21 -> 2025-09-12 | L8: Horas máximas contrato | S8: ='1. Ajuste horas formación'!I22 -> 1370 | U8: (horas en centro + horas en empresa)
C9: Fin de contrato | G9: ='1. Ajuste horas formación'!C22 -> 2026-06-19 | L9: Horas minimas centro educativo | S9: ='1. Ajuste horas formación'!K44 -> 0 | V9: Depedende del proyecto a veces no se alcanza las horas máximas de contrato, pero deben cumplirse la mínimas en centro educativo y las de empresa situarse entre su mínimo y máximo, siendo su suma inferior a las máximas de contrato.
L10: Horas máximas en empresa | S10: ='1. Ajuste horas formación'!E13 -> 860
L11: Horas mínimas en empresa | S11: ='1. Ajuste horas formación'!P16 -> 700
L12: Días vacaciones | S12: =ROUND('1. Ajuste horas formación'!I21,0) -> 17
C13: Tipos de días
D14: Marcar los días con los colores según el tipo de día en el calendario
F15: Nº días | U15: Festivos adicionales no incluidos inicialmente en el calendario para 2025/2026:
C16: Festivos | F16: =COUNTIF($C$74:$AG$106,ObtenerColorCelda(E16)) -> 24
C17: Vacaciones | F17: =COUNTIF($C$74:$AG$106,ObtenerColorCelda(E17)) -> 0 | G17: =IF(F17<Dias_vacaciones,CONCATENATE("Incluir ",Dias_vacaciones," días de vacaciones"),"Ajustadas vacaciones") -> Incluir 17 días de vacaciones | V17: Provinciales
W18: Huesca: 12 y 13 de febrero
F19: Nº horas/día en | J19: Nº días según tipo | L19: Nº horas en | W19: Teruel: 20 y 23 de febrero
F20: Centro | H20: Empresa | L20: Centro | N20: Empresa | W20: Zaragoza: 10 de octubre y 6 de marzo
C21: Tipo día 1 | F21: 6 | H21: 0 | J21: =COUNTIF($C$74:$AG$106,ObtenerColorCelda(E21)) -> 177 | L21: =F21*J21 -> 1062 | N21: =J21*H21 -> 0 | V21: Locales
C22: Tipo día 2 | F22: 0 | H22: 8 | J22: =COUNTIF($C$74:$AG$106,ObtenerColorCelda(E22)) -> 0 | L22: =F22*J22 -> 0 | N22: =J22*H22 -> 0 | W22: Faltan por definir dos días de fiesta local
C23: Tipo día 3 | F23: 4 | H23: 4 | J23: =COUNTIF($C$74:$AG$106,ObtenerColorCelda(E23)) -> 0 | L23: 0 | N23: 0
C24: Tipo día 4 | H24: 6 | J24: =COUNTIF($C$74:$AG$106,ObtenerColorCelda(E24)) -> 0 | L24: 0 | N24: 0
B25: =IF('1. Ajuste horas formación'!K44=0,"",IF(L25<Horas_min_formacion,CONCATENATE("Incrementar días en centro hasta ",Horas_min_formacion," h"),IF(L25>Horas_min_formacion,CONCATENATE("Cuanto más cerca las horas en centro a ",Horas_min_formacion,," h "," mejor se ajusta a la organización del proyecto"),"Ajustada correctamente horas formación en centro educativo"))) ->  | L25: =SUM(L21:M24) -> 1062 | N25: =SUM(N21:O24) -> 0 | P25: =IF(N25<S11,CONCATENATE("Debe incrementar horas en empresa con mínimo de ",S11," h"," y máximo de ",S10," h"),IF(N25<=S10,CONCATENATE("Si queda margen entre inicio y fin del contrato puede incrementar horas en empresa hasta ",S10," h"),CONCATENATE("Debe reducir horas en empresa como máximo pueden ser ",S10," h"))) -> Debe incrementar horas en empresa con mínimo de 700 h y máximo de 860 h
L26: =ROUND(SUM(L25:O25),0) -> 1062 | P26: =IF(N25>S10,CONCATENATE("Debe reducir horas en empresa, máximo = ",S10," h"),IF(AND(L25>=Horas_min_formacion,N25>=N25,N25<=S10,L26<=Horas_max_contrato),"<--- Horas en centro + empresa organizadas en el Proyecto",IF(L26>Horas_max_contrato,CONCATENATE("Debe reducir máximo a ",Horas_max_contrato," h","Debe corregir mensajes de ajuste de horas en centro o en empresa")))) -> <--- Horas en centro + empresa organizadas en el Proyecto
C28: ="JUNIO "&AñoActual -> JUNIO 2025 | K28: ="JULIO "&AñoActual -> JULIO 2025 | S28: ="AGOSTO "&AñoActual -> AGOSTO 2025 | AA28: ="SEPTIEMBRE "&AñoActual -> SEPTIEMBRE 2025
C29: L | D29: M | E29: X | F29: J | G29: V | H29: S | I29: D | K29: L | L29: M | M29: X | N29: J | O29: V | P29: S | Q29: D | S29: L | T29: M | U29: X | V29: J | W29: V | X29: S | Y29: D | AA29: L | AB29: M | AC29: X | AD29: J | AE29: V | AF29: S | AG29: D
C30: =IF(MONTH(DATE(AñoActual,6,1))<>MONTH(DATE(AñoActual,6,1)-(WEEKDAY(DATE(AñoActual,6,1),2)-1)+{0;1;2;3;4;5}*7+{1,2,3,4,5,6,7}-1),"",DATE(AñoActual,6,1)-(WEEKDAY(DATE(AñoActual,6,1),2)-1)+{0;1;2;3;4;5}*7+{1,2,3,4,5,6,7}-1) ->  | I30: 2025-06-01 | K30: =IF(MONTH(DATE(AñoActual,7,1))<>MONTH(DATE(AñoActual,7,1)-(WEEKDAY(DATE(AñoActual,7,1),2)-1)+{0;1;2;3;4;5}*7+{1,2,3,4,5,6,7}-1),"",DATE(AñoActual,7,1)-(WEEKDAY(DATE(AñoActual,7,1),2)-1)+{0;1;2;3;4;5}*7+{1,2,3,4,5,6,7}-1) ->  | L30: 2025-07-01 | M30: 2025-07-02 | N30: 2025-07-03 | O30: 2025-07-04 | P30: 2025-07-05 | Q30: 2025-07-06 | S30: =IF(MONTH(DATE(AñoActual,8,1))<>MONTH(DATE(AñoActual,8,1)-(WEEKDAY(DATE(AñoActual,8,1),2)-1)+{0;1;2;3;4;5}*7+{1,2,3,4,5,6,7}-1),"",DATE(AñoActual,8,1)-(WEEKDAY(DATE(AñoActual,8,1),2)-1)+{0;1;2;3;4;5}*7+{1,2,3,4,5,6,7}-1) ->  | W30: 2025-08-01 | X30: 2025-08-02 | Y30: 2025-08-03 | AA30: =IF(MONTH(DATE(AñoActual,9,1))<>MONTH(DATE(AñoActual,9,1)-(WEEKDAY(DATE(AñoActual,9,1),2)-1)+{0;1;2;3;4;5}*7+{1,2,3,4,5,6,7}-1),"",DATE(AñoActual,9,1)-(WEEKDAY(DATE(AñoActual,9,1),2)-1)+{0;1;2;3;4;5}*7+{1,2,3,4,5,6,7}-1) -> 2025-09-01 | AB30: 2025-09-02 | AC30: 2025-09-03 | AD30: 2025-09-04 | AE30: 2025-09-05 | AF30: 2025-09-06 | AG30: 2025-09-07
C31: 2025-06-02 | D31: 2025-06-03 | E31: 2025-06-04 | F31: 2025-06-05 | G31: 2025-06-06 | H31: 2025-06-07 | I31: 2025-06-08 | K31: 2025-07-07 | L31: 2025-07-08 | M31: 2025-07-09 | N31: 2025-07-10 | O31: 2025-07-11 | P31: 2025-07-12 | Q31: 2025-07-13 | S31: 2025-08-04 | T31: 2025-08-05 | U31: 2025-08-06 | V31: 2025-08-07 | W31: 2025-08-08 | X31: 2025-08-09 | Y31: 2025-08-10 | AA31: 2025-09-08 | AB31: 2025-09-09 | AC31: 2025-09-10 | AD31: 2025-09-11 | AE31: 2025-09-12 | AF31: 2025-09-13 | AG31: 2025-09-14
C32: 2025-06-09 | D32: 2025-06-10 | E32: 2025-06-11 | F32: 2025-06-12 | G32: 2025-06-13 | H32: 2025-06-14 | I32: 2025-06-15 | K32: 2025-07-14 | L32: 2025-07-15 | M32: 2025-07-16 | N32: 2025-07-17 | O32: 2025-07-18 | P32: 2025-07-19 | Q32: 2025-07-20 | S32: 2025-08-11 | T32: 2025-08-12 | U32: 2025-08-13 | V32: 2025-08-14 | W32: 2025-08-15 | X32: 2025-08-16 | Y32: 2025-08-17 | AA32: 2025-09-15 | AB32: 2025-09-16 | AC32: 2025-09-17 | AD32: 2025-09-18 | AE32: 2025-09-19 | AF32: 2025-09-20 | AG32: 2025-09-21
C33: 2025-06-16 | D33: 2025-06-17 | E33: 2025-06-18 | F33: 2025-06-19 | G33: 2025-06-20 | H33: 2025-06-21 | I33: 2025-06-22 | K33: 2025-07-21 | L33: 2025-07-22 | M33: 2025-07-23 | N33: 2025-07-24 | O33: 2025-07-25 | P33: 2025-07-26 | Q33: 2025-07-27 | S33: 2025-08-18 | T33: 2025-08-19 | U33: 2025-08-20 | V33: 2025-08-21 | W33: 2025-08-22 | X33: 2025-08-23 | Y33: 2025-08-24 | AA33: 2025-09-22 | AB33: 2025-09-23 | AC33: 2025-09-24 | AD33: 2025-09-25 | AE33: 2025-09-26 | AF33: 2025-09-27 | AG33: 2025-09-28
C34: 2025-06-23 | D34: 2025-06-24 | E34: 2025-06-25 | F34: 2025-06-26 | G34: 2025-06-27 | H34: 2025-06-28 | I34: 2025-06-29 | K34: 2025-07-28 | L34: 2025-07-29 | M34: 2025-07-30 | N34: 2025-07-31 | S34: 2025-08-25 | T34: 2025-08-26 | U34: 2025-08-27 | V34: 2025-08-28 | W34: 2025-08-29 | X34: 2025-08-30 | Y34: 2025-08-31 | AA34: 2025-09-29 | AB34: 2025-09-30
C35: 2025-06-30
C37: ="OCTUBRE "&AñoActual -> OCTUBRE 2025 | K37: ="NOVIEMBRE "&AñoActual -> NOVIEMBRE 2025 | S37: ="DICIEMBRE "&AñoActual -> DICIEMBRE 2025 | AA37: ="ENERO "&AñoSiguiente -> ENERO 2026
C38: L | D38: M | E38: X | F38: J | G38: V | H38: S | I38: D | K38: L | L38: M | M38: X | N38: J | O38: V | P38: S | Q38: D | S38: L | T38: M | U38: X | V38: J | W38: V | X38: S | Y38: D | AA38: L | AB38: M | AC38: X | AD38: J | AE38: V | AF38: S | AG38: D
C39: =IF(MONTH(DATE(AñoActual,10,1))<>MONTH(DATE(AñoActual,10,1)-(WEEKDAY(DATE(AñoActual,10,1),2)-1)+{0;1;2;3;4;5}*7+{1,2,3,4,5,6,7}-1),"",DATE(AñoActual,10,1)-(WEEKDAY(DATE(AñoActual,10,1),2)-1)+{0;1;2;3;4;5}*7+{1,2,3,4,5,6,7}-1) ->  | E39: 2025-10-01 | F39: 2025-10-02 | G39: 2025-10-03 | H39: 2025-10-04 | I39: 2025-10-05 | K39: =IF(MONTH(DATE(AñoActual,11,1))<>MONTH(DATE(AñoActual,11,1)-(WEEKDAY(DATE(AñoActual,11,1),2)-1)+{0;1;2;3;4;5}*7+{1,2,3,4,5,6,7}-1),"",DATE(AñoActual,11,1)-(WEEKDAY(DATE(AñoActual,11,1),2)-1)+{0;1;2;3;4;5}*7+{1,2,3,4,5,6,7}-1) ->  | P39: 2025-11-01 | Q39: 2025-11-02 | S39: =IF(MONTH(DATE(AñoActual,12,1))<>MONTH(DATE(AñoActual,12,1)-(WEEKDAY(DATE(AñoActual,12,1),2)-1)+{0;1;2;3;4;5}*7+{1,2,3,4,5,6,7}-1),"",DATE(AñoActual,12,1)-(WEEKDAY(DATE(AñoActual,12,1),2)-1)+{0;1;2;3;4;5}*7+{1,2,3,4,5,6,7}-1) -> 2025-12-01 | T39: 2025-12-02 | U39: 2025-12-03 | V39: 2025-12-04 | W39: 2025-12-05 | X39: 2025-12-06 | Y39: 2025-12-07 | AA39: =IF(MONTH(DATE(AñoSiguiente,1,1))<>MONTH(DATE(AñoSiguiente,1,1)-(WEEKDAY(DATE(AñoSiguiente,1,1),2)-1)+{0;1;2;3;4;5}*7+{1,2,3,4,5,6,7}-1),"",DATE(AñoSiguiente,1,1)-(WEEKDAY(DATE(AñoSiguiente,1,1),2)-1)+{0;1;2;3;4;5}*7+{1,2,3,4,5,6,7}-1) ->  | AD39: 2026-01-01 | AE39: 2026-01-02 | AF39: 2026-01-03 | AG39: 2026-01-04
C40: 2025-10-06 | D40: 2025-10-07 | E40: 2025-10-08 | F40: 2025-10-09 | G40: 2025-10-10 | H40: 2025-10-11 | I40: 2025-10-12 | K40: 2025-11-03 | L40: 2025-11-04 | M40: 2025-11-05 | N40: 2025-11-06 | O40: 2025-11-07 | P40: 2025-11-08 | Q40: 2025-11-09 | S40: 2025-12-08 | T40: 2025-12-09 | U40: 2025-12-10 | V40: 2025-12-11 | W40: 2025-12-12 | X40: 2025-12-13 | Y40: 2025-12-14 | AA40: 2026-01-05 | AB40: 2026-01-06 | AC40: 2026-01-07 | AD40: 2026-01-08 | AE40: 2026-01-09 | AF40: 2026-01-10 | AG40: 2026-01-11
C41: 2025-10-13 | D41: 2025-10-14 | E41: 2025-10-15 | F41: 2025-10-16 | G41: 2025-10-17 | H41: 2025-10-18 | I41: 2025-10-19 | K41: 2025-11-10 | L41: 2025-11-11 | M41: 2025-11-12 | N41: 2025-11-13 | O41: 2025-11-14 | P41: 2025-11-15 | Q41: 2025-11-16 | S41: 2025-12-15 | T41: 2025-12-16 | U41: 2025-12-17 | V41: 2025-12-18 | W41: 2025-12-19 | X41: 2025-12-20 | Y41: 2025-12-21 | AA41: 2026-01-12 | AB41: 2026-01-13 | AC41: 2026-01-14 | AD41: 2026-01-15 | AE41: 2026-01-16 | AF41: 2026-01-17 | AG41: 2026-01-18
C42: 2025-10-20 | D42: 2025-10-21 | E42: 2025-10-22 | F42: 2025-10-23 | G42: 2025-10-24 | H42: 2025-10-25 | I42: 2025-10-26 | K42: 2025-11-17 | L42: 2025-11-18 | M42: 2025-11-19 | N42: 2025-11-20 | O42: 2025-11-21 | P42: 2025-11-22 | Q42: 2025-11-23 | S42: 2025-12-22 | T42: 2025-12-23 | U42: 2025-12-24 | V42: 2025-12-25 | W42: 2025-12-26 | X42: 2025-12-27 | Y42: 2025-12-28 | AA42: 2026-01-19 | AB42: 2026-01-20 | AC42: 2026-01-21 | AD42: 2026-01-22 | AE42: 2026-01-23 | AF42: 2026-01-24 | AG42: 2026-01-25
C43: 2025-10-27 | D43: 2025-10-28 | E43: 2025-10-29 | F43: 2025-10-30 | G43: 2025-10-31 | K43: 2025-11-24 | L43: 2025-11-25 | M43: 2025-11-26 | N43: 2025-11-27 | O43: 2025-11-28 | P43: 2025-11-29 | Q43: 2025-11-30 | S43: 2025-12-29 | T43: 2025-12-30 | U43: 2025-12-31 | AA43: 2026-01-26 | AB43: 2026-01-27 | AC43: 2026-01-28 | AD43: 2026-01-29 | AE43: 2026-01-30 | AF43: 2026-01-31
C46: ="FEBRERO "&AñoSiguiente -> FEBRERO 2026 | K46: ="MARZO "&AñoSiguiente -> MARZO 2026 | S46: ="ABRIL "&AñoSiguiente -> ABRIL 2026 | AA46: ="MAYO "&AñoSiguiente -> MAYO 2026
C47: L | D47: M | E47: X | F47: J | G47: V | H47: S | I47: D | K47: L | L47: M | M47: X | N47: J | O47: V | P47: S | Q47: D | S47: L | T47: M | U47: X | V47: J | W47: V | X47: S | Y47: D | AA47: L | AB47: M | AC47: X | AD47: J | AE47: V | AF47: S | AG47: D
C48: =IF(MONTH(DATE(AñoSiguiente,2,1))<>MONTH(DATE(AñoSiguiente,2,1)-(WEEKDAY(DATE(AñoSiguiente,2,1),2)-1)+{0;1;2;3;4;5}*7+{1,2,3,4,5,6,7}-1),"",DATE(AñoSiguiente,2,1)-(WEEKDAY(DATE(AñoSiguiente,2,1),2)-1)+{0;1;2;3;4;5}*7+{1,2,3,4,5,6,7}-1) ->  | I48: 2026-02-01 | K48: =IF(MONTH(DATE(AñoSiguiente,3,1))<>MONTH(DATE(AñoSiguiente,3,1)-(WEEKDAY(DATE(AñoSiguiente,3,1),2)-1)+{0;1;2;3;4;5}*7+{1,2,3,4,5,6,7}-1),"",DATE(AñoSiguiente,3,1)-(WEEKDAY(DATE(AñoSiguiente,3,1),2)-1)+{0;1;2;3;4;5}*7+{1,2,3,4,5,6,7}-1) ->  | Q48: 2026-03-01 | S48: =IF(MONTH(DATE(AñoSiguiente,4,1))<>MONTH(DATE(AñoSiguiente,4,1)-(WEEKDAY(DATE(AñoSiguiente,4,1),2)-1)+{0;1;2;3;4;5}*7+{1,2,3,4,5,6,7}-1),"",DATE(AñoSiguiente,4,1)-(WEEKDAY(DATE(AñoSiguiente,4,1),2)-1)+{0;1;2;3;4;5}*7+{1,2,3,4,5,6,7}-1) ->  | U48: 2026-04-01 | V48: 2026-04-02 | W48: 2026-04-03 | X48: 2026-04-04 | Y48: 2026-04-05 | AA48: =IF(MONTH(DATE(AñoSiguiente,5,1))<>MONTH(DATE(AñoSiguiente,5,1)-(WEEKDAY(DATE(AñoSiguiente,5,1),2)-1)+{0;1;2;3;4;5}*7+{1,2,3,4,5,6,7}-1),"",DATE(AñoSiguiente,5,1)-(WEEKDAY(DATE(AñoSiguiente,5,1),2)-1)+{0;1;2;3;4;5}*7+{1,2,3,4,5,6,7}-1) ->  | AE48: 2026-05-01 | AF48: 2026-05-02 | AG48: 2026-05-03
C49: 2026-02-02 | D49: 2026-02-03 | E49: 2026-02-04 | F49: 2026-02-05 | G49: 2026-02-06 | H49: 2026-02-07 | I49: 2026-02-08 | K49: 2026-03-02 | L49: 2026-03-03 | M49: 2026-03-04 | N49: 2026-03-05 | O49: 2026-03-06 | P49: 2026-03-07 | Q49: 2026-03-08 | S49: 2026-04-06 | T49: 2026-04-07 | U49: 2026-04-08 | V49: 2026-04-09 | W49: 2026-04-10 | X49: 2026-04-11 | Y49: 2026-04-12 | AA49: 2026-05-04 | AB49: 2026-05-05 | AC49: 2026-05-06 | AD49: 2026-05-07 | AE49: 2026-05-08 | AF49: 2026-05-09 | AG49: 2026-05-10
C50: 2026-02-09 | D50: 2026-02-10 | E50: 2026-02-11 | F50: 2026-02-12 | G50: 2026-02-13 | H50: 2026-02-14 | I50: 2026-02-15 | K50: 2026-03-09 | L50: 2026-03-10 | M50: 2026-03-11 | N50: 2026-03-12 | O50: 2026-03-13 | P50: 2026-03-14 | Q50: 2026-03-15 | S50: 2026-04-13 | T50: 2026-04-14 | U50: 2026-04-15 | V50: 2026-04-16 | W50: 2026-04-17 | X50: 2026-04-18 | Y50: 2026-04-19 | AA50: 2026-05-11 | AB50: 2026-05-12 | AC50: 2026-05-13 | AD50: 2026-05-14 | AE50: 2026-05-15 | AF50: 2026-05-16 | AG50: 2026-05-17
C51: 2026-02-16 | D51: 2026-02-17 | E51: 2026-02-18 | F51: 2026-02-19 | G51: 2026-02-20 | H51: 2026-02-21 | I51: 2026-02-22 | K51: 2026-03-16 | L51: 2026-03-17 | M51: 2026-03-18 | N51: 2026-03-19 | O51: 2026-03-20 | P51: 2026-03-21 | Q51: 2026-03-22 | S51: 2026-04-20 | T51: 2026-04-21 | U51: 2026-04-22 | V51: 2026-04-23 | W51: 2026-04-24 | X51: 2026-04-25 | Y51: 2026-04-26 | AA51: 2026-05-18 | AB51: 2026-05-19 | AC51: 2026-05-20 | AD51: 2026-05-21 | AE51: 2026-05-22 | AF51: 2026-05-23 | AG51: 2026-05-24
C52: 2026-02-23 | D52: 2026-02-24 | E52: 2026-02-25 | F52: 2026-02-26 | G52: 2026-02-27 | H52: 2026-02-28 | K52: 2026-03-23 | L52: 2026-03-24 | M52: 2026-03-25 | N52: 2026-03-26 | O52: 2026-03-27 | P52: 2026-03-28 | Q52: 2026-03-29 | S52: 2026-04-27 | T52: 2026-04-28 | U52: 2026-04-29 | V52: 2026-04-30 | AA52: 2026-05-25 | AB52: 2026-05-26 | AC52: 2026-05-27 | AD52: 2026-05-28 | AE52: 2026-05-29 | AF52: 2026-05-30 | AG52: 2026-05-31
K53: 2026-03-30 | L53: 2026-03-31
C55: ="JUNIO "&AñoSiguiente -> JUNIO 2026 | K55: ="JULIO "&AñoSiguiente -> JULIO 2026 | S55: ="AGOSTO "&AñoSiguiente -> AGOSTO 2026 | AA55: ="SEPTIEMBRE "&AñoActual+1 -> SEPTIEMBRE 2026
C56: L | D56: M | E56: X | F56: J | G56: V | H56: S | I56: D | K56: L | L56: M | M56: X | N56: J | O56: V | P56: S | Q56: D | S56: L | T56: M | U56: X | V56: J | W56: V | X56: S | Y56: D | AA56: L | AB56: M | AC56: X | AD56: J | AE56: V | AF56: S | AG56: D
C57: =IF(MONTH(DATE(AñoSiguiente,6,1))<>MONTH(DATE(AñoSiguiente,6,1)-(WEEKDAY(DATE(AñoSiguiente,6,1),2)-1)+{0;1;2;3;4;5}*7+{1,2,3,4,5,6,7}-1),"",DATE(AñoSiguiente,6,1)-(WEEKDAY(DATE(AñoSiguiente,6,1),2)-1)+{0;1;2;3;4;5}*7+{1,2,3,4,5,6,7}-1) -> 2026-06-01 | D57: 2026-06-02 | E57: 2026-06-03 | F57: 2026-06-04 | G57: 2026-06-05 | H57: 2026-06-06 | I57: 2026-06-07 | K57: =IF(MONTH(DATE(AñoSiguiente,7,1))<>MONTH(DATE(AñoSiguiente,7,1)-(WEEKDAY(DATE(AñoSiguiente,7,1),2)-1)+{0;1;2;3;4;5}*7+{1,2,3,4,5,6,7}-1),"",DATE(AñoSiguiente,7,1)-(WEEKDAY(DATE(AñoSiguiente,7,1),2)-1)+{0;1;2;3;4;5}*7+{1,2,3,4,5,6,7}-1) ->  | M57: 2026-07-01 | N57: 2026-07-02 | O57: 2026-07-03 | P57: 2026-07-04 | Q57: 2026-07-05 | S57: =IF(MONTH(DATE(AñoSiguiente,8,1))<>MONTH(DATE(AñoSiguiente,8,1)-(WEEKDAY(DATE(AñoSiguiente,8,1),2)-1)+{0;1;2;3;4;5}*7+{1,2,3,4,5,6,7}-1),"",DATE(AñoSiguiente,8,1)-(WEEKDAY(DATE(AñoSiguiente,8,1),2)-1)+{0;1;2;3;4;5}*7+{1,2,3,4,5,6,7}-1) ->  | X57: 2026-08-01 | Y57: 2026-08-02 | AA57: =IF(MONTH(DATE(AñoSiguiente,9,1))<>MONTH(DATE(AñoSiguiente,9,1)-(WEEKDAY(DATE(AñoSiguiente,9,1),2)-1)+{0;1;2;3;4;5}*7+{1,2,3,4,5,6,7}-1),"",DATE(AñoSiguiente,9,1)-(WEEKDAY(DATE(AñoSiguiente,9,1),2)-1)+{0;1;2;3;4;5}*7+{1,2,3,4,5,6,7}-1) ->  | AB57: 2026-09-01 | AC57: 2026-09-02 | AD57: 2026-09-03 | AE57: 2026-09-04 | AF57: 2026-09-05 | AG57: 2026-09-06
C58: 2026-06-08 | D58: 2026-06-09 | E58: 2026-06-10 | F58: 2026-06-11 | G58: 2026-06-12 | H58: 2026-06-13 | I58: 2026-06-14 | K58: 2026-07-06 | L58: 2026-07-07 | M58: 2026-07-08 | N58: 2026-07-09 | O58: 2026-07-10 | P58: 2026-07-11 | Q58: 2026-07-12 | S58: 2026-08-03 | T58: 2026-08-04 | U58: 2026-08-05 | V58: 2026-08-06 | W58: 2026-08-07 | X58: 2026-08-08 | Y58: 2026-08-09 | AA58: 2026-09-07 | AB58: 2026-09-08 | AC58: 2026-09-09 | AD58: 2026-09-10 | AE58: 2026-09-11 | AF58: 2026-09-12 | AG58: 2026-09-13
C59: 2026-06-15 | D59: 2026-06-16 | E59: 2026-06-17 | F59: 2026-06-18 | G59: 2026-06-19 | H59: 2026-06-20 | I59: 2026-06-21 | K59: 2026-07-13 | L59: 2026-07-14 | M59: 2026-07-15 | N59: 2026-07-16 | O59: 2026-07-17 | P59: 2026-07-18 | Q59: 2026-07-19 | S59: 2026-08-10 | T59: 2026-08-11 | U59: 2026-08-12 | V59: 2026-08-13 | W59: 2026-08-14 | X59: 2026-08-15 | Y59: 2026-08-16 | AA59: 2026-09-14 | AB59: 2026-09-15 | AC59: 2026-09-16 | AD59: 2026-09-17 | AE59: 2026-09-18 | AF59: 2026-09-19 | AG59: 2026-09-20
C60: 2026-06-22 | D60: 2026-06-23 | E60: 2026-06-24 | F60: 2026-06-25 | G60: 2026-06-26 | H60: 2026-06-27 | I60: 2026-06-28 | K60: 2026-07-20 | L60: 2026-07-21 | M60: 2026-07-22 | N60: 2026-07-23 | O60: 2026-07-24 | P60: 2026-07-25 | Q60: 2026-07-26 | S60: 2026-08-17 | T60: 2026-08-18 | U60: 2026-08-19 | V60: 2026-08-20 | W60: 2026-08-21 | X60: 2026-08-22 | Y60: 2026-08-23 | AA60: 2026-09-21 | AB60: 2026-09-22 | AC60: 2026-09-23 | AD60: 2026-09-24 | AE60: 2026-09-25 | AF60: 2026-09-26 | AG60: 2026-09-27
C61: 2026-06-29 | D61: 2026-06-30 | K61: 2026-07-27 | L61: 2026-07-28 | M61: 2026-07-29 | N61: 2026-07-30 | O61: 2026-07-31 | S61: 2026-08-24 | T61: 2026-08-25 | U61: 2026-08-26 | V61: 2026-08-27 | W61: 2026-08-28 | X61: 2026-08-29 | Y61: 2026-08-30 | AA61: 2026-09-28 | AB61: 2026-09-29 | AC61: 2026-09-30
S62: 2026-08-31
C71: Tabla con colores de las celdas
C72: ="JUNIO "&AñoActual -> JUNIO 2025 | K72: ="JULIO "&AñoActual -> JULIO 2025 | S72: ="AGOSTO "&AñoActual -> AGOSTO 2025 | AA72: ="SEPTIEMBRE "&AñoActual -> SEPTIEMBRE 2025
C73: L | D73: M | E73: X | F73: J | G73: V | H73: S | I73: D | K73: L | L73: M | M73: X | N73: J | O73: V | P73: S | Q73: D | S73: L | T73: M | U73: X | V73: J | W73: V | X73: S | Y73: D | AA73: L | AB73: M | AC73: X | AD73: J | AE73: V | AF73: S | AG73: D
C74: =ObtenerColorCelda(C30) -> 16777215 | D74: 16777215 | E74: 16777215 | F74: 16777215 | G74: 16777215 | H74: 10092543 | I74: 10092543 | K74: =ObtenerColorCelda(K30) -> 16777215 | L74: 16777215 | M74: 16777215 | N74: 16777215 | O74: 16777215 | P74: 10092543 | Q74: 10092543 | S74: =ObtenerColorCelda(S30) -> 16777215 | T74: 16777215 | U74: 16777215 | V74: 16777215 | W74: 16777215 | X74: 10092543 | Y74: 10092543 | AA74: =ObtenerColorCelda(AA30) -> 16777215 | AB74: 16777215 | AC74: 16777215 | AD74: 16777215 | AE74: 16777215 | AF74: 10092543 | AG74: 10092543
C75: =ObtenerColorCelda(C31) -> 16777215 | D75: 16777215 | E75: 16777215 | F75: 16777215 | G75: 16777215 | H75: 10092543 | I75: 10092543 | K75: =ObtenerColorCelda(K31) -> 16777215 | L75: 16777215 | M75: 16777215 | N75: 16777215 | O75: 16777215 | P75: 10092543 | Q75: 10092543 | S75: =ObtenerColorCelda(S31) -> 16777215 | T75: 16777215 | U75: 16777215 | V75: 16777215 | W75: 16777215 | X75: 10092543 | Y75: 10092543 | AA75: =ObtenerColorCelda(AA31) -> 16777215 | AB75: 16777215 | AC75: 16777215 | AD75: 16777215 | AE75: 49407 | AF75: 10092543 | AG75: 10092543
C76: =ObtenerColorCelda(C32) -> 16777215 | D76: 16777215 | E76: 16777215 | F76: 16777215 | G76: 16777215 | H76: 10092543 | I76: 10092543 | K76: =ObtenerColorCelda(K32) -> 16777215 | L76: 16777215 | M76: 16777215 | N76: 16777215 | O76: 16777215 | P76: 10092543 | Q76: 10092543 | S76: =ObtenerColorCelda(S32) -> 16777215 | T76: 16777215 | U76: 16777215 | V76: 16777215 | W76: 16777215 | X76: 10092543 | Y76: 10092543 | AA76: =ObtenerColorCelda(AA32) -> 49407 | AB76: 49407 | AC76: 49407 | AD76: 49407 | AE76: 49407 | AF76: 10092543 | AG76: 10092543
C77: =ObtenerColorCelda(C33) -> 16777215 | D77: 16777215 | E77: 16777215 | F77: 16777215 | G77: 16777215 | H77: 10092543 | I77: 10092543 | K77: =ObtenerColorCelda(K33) -> 16777215 | L77: 16777215 | M77: 16777215 | N77: 16777215 | O77: 16777215 | P77: 10092543 | Q77: 10092543 | S77: =ObtenerColorCelda(S33) -> 16777215 | T77: 16777215 | U77: 16777215 | V77: 16777215 | W77: 16777215 | X77: 10092543 | Y77: 10092543 | AA77: =ObtenerColorCelda(AA33) -> 49407 | AB77: 49407 | AC77: 49407 | AD77: 49407 | AE77: 49407 | AF77: 10092543 | AG77: 10092543
C78: =ObtenerColorCelda(C34) -> 16777215 | D78: 16777215 | E78: 16777215 | F78: 16777215 | G78: 16777215 | H78: 10092543 | I78: 10092543 | K78: =ObtenerColorCelda(K34) -> 16777215 | L78: 16777215 | M78: 16777215 | N78: 16777215 | O78: 16777215 | P78: 10092543 | Q78: 10092543 | S78: =ObtenerColorCelda(S34) -> 16777215 | T78: 16777215 | U78: 16777215 | V78: 16777215 | W78: 16777215 | X78: 10092543 | Y78: 10092543 | AA78: =ObtenerColorCelda(AA34) -> 49407 | AB78: 49407 | AC78: 16777215 | AD78: 16777215 | AE78: 16777215 | AF78: 10092543 | AG78: 10092543
C79: =ObtenerColorCelda(C35) -> 16777215 | D79: 16777215 | E79: 16777215 | F79: 16777215 | G79: 16777215 | H79: 10092543 | I79: 10092543 | K79: =ObtenerColorCelda(K35) -> 16777215 | L79: 16777215 | M79: 16777215 | N79: 16777215 | O79: 16777215 | P79: 10092543 | Q79: 10092543 | S79: =ObtenerColorCelda(S35) -> 16777215 | T79: 16777215 | U79: 16777215 | V79: 16777215 | W79: 16777215 | X79: 10092543 | Y79: 10092543 | AA79: =ObtenerColorCelda(AA35) -> 16777215 | AB79: 16777215 | AC79: 16777215 | AD79: 16777215 | AE79: 16777215 | AF79: 10092543 | AG79: 10092543
C81: ="OCTUBRE "&AñoActual -> OCTUBRE 2025 | K81: ="NOVIEMBRE "&AñoActual -> NOVIEMBRE 2025 | S81: ="DICIEMBRE "&AñoActual -> DICIEMBRE 2025 | AA81: ="ENERO "&AñoSiguiente -> ENERO 2026
C82: L | D82: M | E82: X | F82: J | G82: V | H82: S | I82: D | K82: L | L82: M | M82: X | N82: J | O82: V | P82: S | Q82: D | S82: L | T82: M | U82: X | V82: J | W82: V | X82: S | Y82: D | AA82: L | AB82: M | AC82: X | AD82: J | AE82: V | AF82: S | AG82: D
C83: =ObtenerColorCelda(C39) -> 16777215 | D83: 16777215 | E83: 49407 | F83: 49407 | G83: 49407 | H83: 10092543 | I83: 10092543 | K83: =ObtenerColorCelda(K39) -> 16777215 | L83: 16777215 | M83: 16777215 | N83: 16777215 | O83: 16777215 | P83: 10092543 | Q83: 10092543 | S83: =ObtenerColorCelda(S39) -> 49407 | T83: 49407 | U83: 49407 | V83: 49407 | W83: 49407 | X83: 10092543 | Y83: 10092543 | AA83: =ObtenerColorCelda(AA39) -> 16777215 | AB83: 16777215 | AC83: 16777215 | AD83: 255 | AE83: 255 | AF83: 10092543 | AG83: 10092543
C84: =ObtenerColorCelda(C40) -> 49407 | D84: 49407 | E84: 49407 | F84: 49407 | G84: 49407 | H84: 10092543 | I84: 10092543 | K84: =ObtenerColorCelda(K40) -> 49407 | L84: 49407 | M84: 49407 | N84: 49407 | O84: 49407 | P84: 10092543 | Q84: 10092543 | S84: =ObtenerColorCelda(S40) -> 255 | T84: 49407 | U84: 49407 | V84: 49407 | W84: 49407 | X84: 10092543 | Y84: 10092543 | AA84: =ObtenerColorCelda(AA40) -> 255 | AB84: 255 | AC84: 255 | AD84: 49407 | AE84: 49407 | AF84: 10092543 | AG84: 10092543
C85: =ObtenerColorCelda(C41) -> 255 | D85: 49407 | E85: 49407 | F85: 49407 | G85: 49407 | H85: 10092543 | I85: 10092543 | K85: =ObtenerColorCelda(K41) -> 49407 | L85: 49407 | M85: 49407 | N85: 49407 | O85: 49407 | P85: 10092543 | Q85: 10092543 | S85: =ObtenerColorCelda(S41) -> 49407 | T85: 49407 | U85: 49407 | V85: 49407 | W85: 49407 | X85: 10092543 | Y85: 10092543 | AA85: =ObtenerColorCelda(AA41) -> 49407 | AB85: 49407 | AC85: 49407 | AD85: 49407 | AE85: 49407 | AF85: 10092543 | AG85: 10092543
C86: =ObtenerColorCelda(C42) -> 49407 | D86: 49407 | E86: 49407 | F86: 49407 | G86: 49407 | H86: 10092543 | I86: 10092543 | K86: =ObtenerColorCelda(K42) -> 49407 | L86: 49407 | M86: 49407 | N86: 49407 | O86: 49407 | P86: 10092543 | Q86: 10092543 | S86: =ObtenerColorCelda(S42) -> 255 | T86: 255 | U86: 255 | V86: 255 | W86: 255 | X86: 10092543 | Y86: 10092543 | AA86: =ObtenerColorCelda(AA42) -> 49407 | AB86: 49407 | AC86: 49407 | AD86: 49407 | AE86: 49407 | AF86: 10092543 | AG86: 10092543
C87: =ObtenerColorCelda(C43) -> 49407 | D87: 49407 | E87: 49407 | F87: 49407 | G87: 49407 | H87: 10092543 | I87: 10092543 | K87: =ObtenerColorCelda(K43) -> 49407 | L87: 49407 | M87: 49407 | N87: 49407 | O87: 49407 | P87: 10092543 | Q87: 10092543 | S87: =ObtenerColorCelda(S43) -> 255 | T87: 255 | U87: 255 | V87: 16777215 | W87: 16777215 | X87: 10092543 | Y87: 10092543 | AA87: =ObtenerColorCelda(AA43) -> 49407 | AB87: 49407 | AC87: 49407 | AD87: 49407 | AE87: 49407 | AF87: 10092543 | AG87: 10092543
C88: =ObtenerColorCelda(C44) -> 16777215 | D88: 16777215 | E88: 16777215 | F88: 16777215 | G88: 16777215 | H88: 10092543 | I88: 10092543 | K88: =ObtenerColorCelda(K44) -> 16777215 | L88: 16777215 | M88: 16777215 | N88: 16777215 | O88: 16777215 | P88: 10092543 | Q88: 10092543 | S88: =ObtenerColorCelda(S44) -> 16777215 | T88: 16777215 | U88: 16777215 | V88: 16777215 | W88: 16777215 | X88: 10092543 | Y88: 10092543 | AA88: =ObtenerColorCelda(AA44) -> 16777215 | AB88: 16777215 | AC88: 16777215 | AD88: 16777215 | AE88: 16777215 | AF88: 10092543 | AG88: 10092543
C90: ="FEBRERO "&AñoSiguiente -> FEBRERO 2026 | K90: ="MARZO "&AñoSiguiente -> MARZO 2026 | S90: ="ABRIL "&AñoSiguiente -> ABRIL 2026 | AA90: ="MAYO "&AñoSiguiente -> MAYO 2026
C91: L | D91: M | E91: X | F91: J | G91: V | H91: S | I91: D | K91: L | L91: M | M91: X | N91: J | O91: V | P91: S | Q91: D | S91: L | T91: M | U91: X | V91: J | W91: V | X91: S | Y91: D | AA91: L | AB91: M | AC91: X | AD91: J | AE91: V | AF91: S | AG91: D
C92: =ObtenerColorCelda(C48) -> 16777215 | D92: 16777215 | E92: 16777215 | F92: 16777215 | G92: 16777215 | H92: 10092543 | I92: 10092543 | K92: =ObtenerColorCelda(K48) -> 16777215 | L92: 16777215 | M92: 16777215 | N92: 16777215 | O92: 16777215 | P92: 10092543 | Q92: 10092543 | S92: =ObtenerColorCelda(S48) -> 16777215 | T92: 16777215 | U92: 255 | V92: 255 | W92: 255 | X92: 10092543 | Y92: 10092543 | AA92: =ObtenerColorCelda(AA48) -> 16777215 | AB92: 16777215 | AC92: 16777215 | AD92: 16777215 | AE92: 255 | AF92: 10092543 | AG92: 10092543
C93: =ObtenerColorCelda(C49) -> 49407 | D93: 49407 | E93: 49407 | F93: 49407 | G93: 49407 | H93: 10092543 | I93: 10092543 | K93: =ObtenerColorCelda(K49) -> 49407 | L93: 49407 | M93: 49407 | N93: 49407 | O93: 49407 | P93: 10092543 | Q93: 10092543 | S93: =ObtenerColorCelda(S49) -> 255 | T93: 49407 | U93: 49407 | V93: 49407 | W93: 49407 | X93: 10092543 | Y93: 10092543 | AA93: =ObtenerColorCelda(AA49) -> 49407 | AB93: 49407 | AC93: 49407 | AD93: 49407 | AE93: 49407 | AF93: 10092543 | AG93: 10092543
C94: =ObtenerColorCelda(C50) -> 49407 | D94: 49407 | E94: 49407 | F94: 49407 | G94: 49407 | H94: 10092543 | I94: 10092543 | K94: =ObtenerColorCelda(K50) -> 49407 | L94: 49407 | M94: 49407 | N94: 49407 | O94: 49407 | P94: 10092543 | Q94: 10092543 | S94: =ObtenerColorCelda(S50) -> 49407 | T94: 49407 | U94: 49407 | V94: 49407 | W94: 49407 | X94: 10092543 | Y94: 10092543 | AA94: =ObtenerColorCelda(AA50) -> 49407 | AB94: 49407 | AC94: 49407 | AD94: 49407 | AE94: 49407 | AF94: 10092543 | AG94: 10092543
C95: =ObtenerColorCelda(C51) -> 49407 | D95: 49407 | E95: 49407 | F95: 49407 | G95: 49407 | H95: 10092543 | I95: 10092543 | K95: =ObtenerColorCelda(K51) -> 49407 | L95: 49407 | M95: 49407 | N95: 49407 | O95: 49407 | P95: 10092543 | Q95: 10092543 | S95: =ObtenerColorCelda(S51) -> 49407 | T95: 49407 | U95: 49407 | V95: 255 | W95: 255 | X95: 10092543 | Y95: 10092543 | AA95: =ObtenerColorCelda(AA51) -> 49407 | AB95: 49407 | AC95: 49407 | AD95: 49407 | AE95: 49407 | AF95: 10092543 | AG95: 10092543
C96: =ObtenerColorCelda(C52) -> 49407 | D96: 49407 | E96: 49407 | F96: 49407 | G96: 49407 | H96: 10092543 | I96: 10092543 | K96: =ObtenerColorCelda(K52) -> 49407 | L96: 49407 | M96: 49407 | N96: 49407 | O96: 49407 | P96: 10092543 | Q96: 10092543 | S96: =ObtenerColorCelda(S52) -> 49407 | T96: 49407 | U96: 49407 | V96: 49407 | W96: 16777215 | X96: 10092543 | Y96: 10092543 | AA96: =ObtenerColorCelda(AA52) -> 49407 | AB96: 49407 | AC96: 49407 | AD96: 49407 | AE96: 49407 | AF96: 10092543 | AG96: 10092543
C97: =ObtenerColorCelda(C53) -> 16777215 | D97: 16777215 | E97: 16777215 | F97: 16777215 | G97: 16777215 | H97: 10092543 | I97: 10092543 | K97: =ObtenerColorCelda(K53) -> 255 | L97: 255 | M97: 16777215 | N97: 16777215 | O97: 16777215 | P97: 10092543 | Q97: 10092543 | S97: =ObtenerColorCelda(S53) -> 16777215 | T97: 16777215 | U97: 16777215 | V97: 16777215 | W97: 16777215 | X97: 10092543 | Y97: 10092543 | AA97: =ObtenerColorCelda(AA53) -> 16777215 | AB97: 16777215 | AC97: 16777215 | AD97: 16777215 | AE97: 16777215 | AF97: 10092543 | AG97: 10092543
C99: ="JUNIO "&AñoSiguiente -> JUNIO 2026 | K99: ="JULIO "&AñoSiguiente -> JULIO 2026 | S99: ="AGOSTO "&AñoSiguiente -> AGOSTO 2026 | AA99: ="SEPTIEMBRE "&AñoActual+1 -> SEPTIEMBRE 2026
C100: L | D100: M | E100: X | F100: J | G100: V | H100: S | I100: D | K100: L | L100: M | M100: X | N100: J | O100: V | P100: S | Q100: D | S100: L | T100: M | U100: X | V100: J | W100: V | X100: S | Y100: D | AA100: L | AB100: M | AC100: X | AD100: J | AE100: V | AF100: S | AG100: D
C101: =ObtenerColorCelda(C57) -> 49407 | D101: 49407 | E101: 49407 | F101: 49407 | G101: 49407 | H101: 10092543 | I101: 10092543 | K101: =ObtenerColorCelda(K57) -> 16777215 | L101: 16777215 | M101: 16777215 | N101: 16777215 | O101: 16777215 | P101: 10092543 | Q101: 10092543 | S101: =ObtenerColorCelda(S57) -> 16777215 | T101: 16777215 | U101: 16777215 | V101: 16777215 | W101: 16777215 | X101: 10092543 | Y101: 10092543 | AA101: =ObtenerColorCelda(AA57) -> 16777215 | AB101: 16777215 | AC101: 16777215 | AD101: 16777215 | AE101: 16777215 | AF101: 10092543 | AG101: 10092543
C102: =ObtenerColorCelda(C58) -> 49407 | D102: 49407 | E102: 49407 | F102: 49407 | G102: 49407 | H102: 10092543 | I102: 10092543 | K102: =ObtenerColorCelda(K58) -> 16777215 | L102: 16777215 | M102: 16777215 | N102: 16777215 | O102: 16777215 | P102: 10092543 | Q102: 10092543 | S102: =ObtenerColorCelda(S58) -> 16777215 | T102: 16777215 | U102: 16777215 | V102: 16777215 | W102: 16777215 | X102: 10092543 | Y102: 10092543 | AA102: =ObtenerColorCelda(AA58) -> 16777215 | AB102: 16777215 | AC102: 16777215 | AD102: 16777215 | AE102: 16777215 | AF102: 10092543 | AG102: 10092543
C103: =ObtenerColorCelda(C59) -> 49407 | D103: 49407 | E103: 49407 | F103: 49407 | G103: 49407 | H103: 10092543 | I103: 10092543 | K103: =ObtenerColorCelda(K59) -> 16777215 | L103: 16777215 | M103: 16777215 | N103: 16777215 | O103: 16777215 | P103: 10092543 | Q103: 10092543 | S103: =ObtenerColorCelda(S59) -> 16777215 | T103: 16777215 | U103: 16777215 | V103: 16777215 | W103: 16777215 | X103: 10092543 | Y103: 10092543 | AA103: =ObtenerColorCelda(AA59) -> 16777215 | AB103: 16777215 | AC103: 16777215 | AD103: 16777215 | AE103: 16777215 | AF103: 10092543 | AG103: 10092543
C104: =ObtenerColorCelda(C60) -> 16777215 | D104: 16777215 | E104: 16777215 | F104: 16777215 | G104: 16777215 | H104: 10092543 | I104: 10092543 | K104: =ObtenerColorCelda(K60) -> 16777215 | L104: 16777215 | M104: 16777215 | N104: 16777215 | O104: 16777215 | P104: 10092543 | Q104: 10092543 | S104: =ObtenerColorCelda(S60) -> 16777215 | T104: 16777215 | U104: 16777215 | V104: 16777215 | W104: 16777215 | X104: 10092543 | Y104: 10092543 | AA104: =ObtenerColorCelda(AA60) -> 16777215 | AB104: 16777215 | AC104: 16777215 | AD104: 16777215 | AE104: 16777215 | AF104: 10092543 | AG104: 10092543
C105: =ObtenerColorCelda(C61) -> 16777215 | D105: 16777215 | E105: 16777215 | F105: 16777215 | G105: 16777215 | H105: 10092543 | I105: 10092543 | K105: =ObtenerColorCelda(K61) -> 16777215 | L105: 16777215 | M105: 16777215 | N105: 16777215 | O105: 16777215 | P105: 10092543 | Q105: 10092543 | S105: =ObtenerColorCelda(S61) -> 16777215 | T105: 16777215 | U105: 16777215 | V105: 16777215 | W105: 16777215 | X105: 10092543 | Y105: 10092543 | AA105: =ObtenerColorCelda(AA61) -> 16777215 | AB105: 16777215 | AC105: 16777215 | AD105: 16777215 | AE105: 16777215 | AF105: 10092543 | AG105: 10092543
C106: =ObtenerColorCelda(C62) -> 16777215 | D106: 16777215 | E106: 16777215 | F106: 16777215 | G106: 16777215 | H106: 10092543 | I106: 10092543 | K106: =ObtenerColorCelda(K62) -> 16777215 | L106: 16777215 | M106: 16777215 | N106: 16777215 | O106: 16777215 | P106: 10092543 | Q106: 10092543 | S106: =ObtenerColorCelda(S62) -> 16777215 | T106: 16777215 | U106: 16777215 | V106: 16777215 | W106: 16777215 | X106: 10092543 | Y106: 10092543 | AA106: =ObtenerColorCelda(AA62) -> 16777215 | AB106: 16777215 | AC106: 16777215 | AD106: 16777215 | AE106: 16777215 | AF106: 10092543 | AG106: 10092543

Sheet 3. Resumen por periodos
A1: PERIODO (Insertar un nuevo periodo cada vez que haya un cambio en el horario o la distribución de jornada. Completar únicamente desde la fecha de firma de contrato o beca) | B1: Fechas del periodo (Ejemplo: De 12/09/2025 a 20/12/2025) | C1: Horas semanales de formación en el centro (completar únicamente desde la fecha de firma de contrato o beca con número de periodos lectivos)* (Ejemplo: 20) | D1: Horas totales en el PERIODO de formación en el centro (completar únicamente desde la fecha de firma de contrato o beca con número de periodos lectivos) (Ejemplo: 120) | E1: Horas semanales de trabajo efectivo en la empresa* (Ejemplo: 10) | F1: Horas en el PERIODO de trabajo efectivo en la empresa (Ejemplo: 60) | G1: Distribución horario en el centro educativo (Ejemplo: De L a V de 8:30 a 14:30) | H1: Horario laboral en la empresa (Ejemplo: De L a V de 16:00 a 18:00)
A3: PERIODO 1
A4: PERIODO 2
A5: PERIODO 3
A6: PERIODO 4
A7: PERIODO 5
A8: PERIODO 6
A9: PERIODO 7
A10: PERIODO 8
A11: PERIODO 9
A12: PERIODO 10
A13: Horas jornada máxima anual según convenio colectivo aplicable: | B13: ='1. Ajuste horas formación'!I22 -> 1370 | C13: Horas de formación en Centro Educativo: | D13: =SUM(D3:D12) -> 0 | E13: Horas de trabajo efectivo en empresa: | F13: =SUM(F3:F12) -> 0 | G13: Horas totales contrato | H13: =ROUND((D13+F13),0) -> 0
C15: =CONCATENATE("(1) El porcentaje de las horas de formación en el centro debe ser de un ",'1. Ajuste horas formación'!Q14,"%") -> (1) El porcentaje de las horas de formación en el centro debe ser de un 35% | G15: (2) La suma total de horas (centro educativo y empresa) debe ser como máximo la del periodo del contrato del convenio colectivo aplicable.

Sheet 4. Coste alumnado
A1: Coste para la empresa del alumnado (2025) | H1: Cotizaciones contrato formación en alternancia (2025) - (Orden PJC/178/2025, de 25 febrero de 2025)
B3: Salario mínimo interprofesional (2025) | J3: Contrato en alternancia | M3: Beca de formación
C4: SMI (€/año) | D4: 16576 | J4: Empresa | K4: Trabajador | L4: Total | M4: Empresa | N4: Trabajador
C5: SMI (€/mes) | D5: =D4/12 -> 1381.333333 | E5: (12 pagas) | H5: Contingencias comunes | J5: 55.97 | K5: 11.16 | L5: =J5+K5 -> 67.13 | M5: 63.44
H6: Accidentes de trabajo y enfermedades profesionales | J6: 7.71 | L6: =J6+K6 -> 7.71 | M6: 7.71
B8: Cálculo medio mensual pago y cotizaciones | H8: Desempleo | J8: 75.97 | K8: 21.41 | L8: 97.38
A9: % formación mínima en centro educativo | D9: 0.35 | H9: Formación | J9: 2.09 | K9: 0.27 | L9: 2.36
H10: Fondo garancia salarial | J10: 4.25 | L10: =J10+K10 -> 4.25
H11: MEI (no se puede bonificar) | J11: 9.25 | K11: 1.8 | L11: =J11+K11 -> 11.05
J12: =SUM(J5:J11) -> 155.24 | K12: =SUM(K5:K11) -> 34.64 | L12: 189.88 | M12: 71.15 | N12: 0
I14: Bonificaciones contrato en alternancia | J14: Empresa | K14: Trabajador | L14: Total
I15: Bonificaciones (RD Ley 1/2023) | J15: 91 | K15: 28 | L15: =J15+K15 -> 119
I16: Tutorización más de 5 trabajadores | J16: 60
I17: Tutorización igual o menos de 5 trabajadores | J17: 80
I19: Bonificaciones beca de formación | J19: 0.95 | K19: (de contigencias comunes)
D22: Retribución bruta media mensual (€/mes) | E22: Pago cotizaciones empresa (€/mes) | F22: Bonificación (€/mes) | G22: Bonif. Tutorización (< 5 trabaj.) (€/mes) | H22: Bonif. Tutorización (> 5 trabaj.) (€/mes)
C24: Contrato Formación en Alternancia | D24: =D5*(1-D9) -> 897.8666667 | E24: =J12 -> 155.24 | F24: =J15 -> 91 | G24: =J17 -> 80 | H24: =J16 -> 60
C25: Beca de Formación | D25: =D24 -> 897.8666667 | E25: =M12 -> 71.15 | F25: =J19*M5 -> 60.268 | G25: 0 | H25: 0
H26: (Bonif. con tutorización máximo 40 horas/mes)
H28: Contrato Formac. en Alternancia | I28: Beca de Formación
C30: Coste medio mensual para empresa de más de 5 empleados | H30: =D24+J11 -> 907.1166667 | I30: =D25+M12-F25 -> 908.7486667
C31: Coste medio mensual para empresa de menos de 5 empleados
C32: Aplicacando máxima bonificación por tutorización, no se puede bonificar el MEI | H32: (Costes en €/mes)

Sheet 5. Exclusión de bonificaciones
B2: Exclusiones de bonificación / reducción de cuotas SS
C4: Acceso al último documento de Beneficios en la Cotización de la Seguridad Social

Sheet Ciclos Nº RA (hidden)
B1: Ciclos de GM implantados en Aragón | F1: % RA--> | G1: 0.2 | I1: % formación en 1º--> | K1: 0.28
D2: Nº resultados de aprendizaje (RA) | G2: Propuesta RA por curso en % horas estancia formación
B3: Código ciclos | C3: Ciclo | D3: 1º | E3: 2º | F3: 1º + 2º | G3: RA máx (1º+2º) | H3: 1º | I3: 2º | K3: 1º | L3: 2º | M3: 3º | N3: 4º | O3: 5º | P3: 6º | Q3: 7º | R3: 8º | S3: 9º | T3: 10º | U3: 11º | V3: 12º
A4: 1 | B4: ADG201 (LFP) | C4: Gestión Administrativa | D4: 48 | E4: 32 | F4: 80 | G4: 16 | H4: 4 | I4: 12 | K4: 0442 - Operaciones Administrativas de Recursos Humanos | L4: 0443 - Tratamiento de la Documentación Contable | M4: 0446 - Empresa en el aula | N4: 0448 - Operaciones Auxiliares de Gestión de Tesorería | O4: 1708 - Sostenibilidad aplicada al sistema productivo | P4: 1710 - Itinerario personal para la empleabilidad II
A5: 2 | B5: ADG301 (LFP) | C5: Administración y finanzas | D5: 49 | E5: 42 | F5: 91 | G5: 18 | H5: 5 | I5: 13 | K5: 0652 - Gestión de recursos humanos | L5: 0653 - Gestión financiera | M5: 0654 - Contabilidad y fiscalidad | N5: 0655 - Gestión logística y comercial | O5: 0656 - Simulación empresarial | P5: 0657 - Proyecto intermodular de administración y finanzas | Q5: 1710 - Itinerario personal para la empleabilidad II | R5: 1708 - Sostenibilidad aplicada al sistema productivo
A6: 3 | B6: ADG302 (LFP) | C6: Asistencia a la dirección | D6: 49 | E6: 36 | F6: 85 | G6: 17 | H6: 5 | I6: 12 | K6: 0180 - Segunda lengua extranjera | L6: 0661 - Protocolo empresarial | M6: 0662 - Organización de eventos empresariales | N6: 0663 - Gestión avanzada de la información | O6: 0664 - Proyecto intermodular de asistencia a la dirección | P6: 1710 - Itinerario personal para la empleabilidad II | Q6: 1708 - Sostenibilidad aplicada al sistema productivo
A7: 4 | B7: AFD201 (LFP) | C7: Guía en el medio natural y de tiempo libre | D7: 50 | E7: 42 | F7: 92 | G7: 18 | H7: 5 | I7: 13 | K7: 1327 - Guía ecuestre | L7: 1335 - Técnicas de tiempo libre | M7: 1337 - Socorrismo en el medio natural | N7: 1338 - Guía en el medio natural acuático | O7: 1339 - Maniobras con cuerdas | P7: 1708 - Sostenibilidad aplicada al sistema productivo | Q7: 1710 - Itinerario personal para la empleabilidad II
A8: 5 | B8: AFD301 (LFP) | C8: Enseñanza y animación sociodeportiva | D8: 48 | E8: 38 | F8: 86 | G8: 17 | H8: 5 | I8: 12 | K8: 1123 - Actividades de ocio y tiempo libre | L8: 1137 - Planificación de la animación sociodeportiva | M8: 1140 - Actividades físico-deportivas de equipo | N8: 1141 - Actividades físico-deportivas de implementos | O8: 1142 - Actividades físico-deportivas para la inclusión social | P8: 1144 - Proyecto intermodular de enseñanza y animación sociodeportiva físicodeportivas | Q8: 1710 - Itinerario personal para la empleabilidad II | R8: 1708 - Sostenibilidad aplicada al sistema productivo
A9: 6 | B9: AFD302 (LFP) | C9: Acondicionamiento físico | D9: 46 | E9: 32 | F9: 78 | G9: 15 | H9: 4 | I9: 11 | K9: 1148 - Fitness en sala de entrenamiento polivalente | L9: 1150 - Actividades especializadas de acondicionamiento físico con soporte musical | M9: 1151 - Acondicionamiento físico en el agua | N9: 1154 - Proyecto intermodular de acondicionamiento físico | O9: 1710 - Itinerario personal para la empleabilidad II | P9: 1708 - Sostenibilidad aplicada al sistema productivo
A10: 7 | B10: AGA201 (LFP) | C10: Producción agropecuaria | D10: 43 | E10: 40 | F10: 83 | G10: 16 | H10: 4 | I10: 12 | K10: 0477 - Producción de Leche, Huevos y Animales para Vida | L10: 0478 - Producción de Carne y otras Producciones Ganaderas | M10: 0479 - Control Fitosanitario | N10: 0408 - Infraestructuras e Instalaciones Agrícolas | O10: 0475 - Implantación de Cultivos | P10: 1708 - Sostenibilidad aplicada al sistema productivo | Q10: 1710 - Itinerario personal para la empleabilidad II
A11: 8 | B11: AGA202 (LFP) | C11: Producción agroecológica | D11: 43 | E11: 43 | F11: 86 | G11: 17 | H11: 5 | I11: 12 | K11: 0408 - Infraestructuras e instalaciones agrícolas | L11: 0410 - Producción vegetal ecológica | M11: 0411 - Producción ganadera ecológica | N11: 0412 - Manejo sanitario del agrosistema | O11: 0413 - Comercialización de productos agroecológicos | P11: 1708 - Sostenibilidad aplicada al sistema productivo | Q11: 1710 - Itinerario personal para la empleabilidad II
A12: 9 | B12: AGA204 (LFP) | C12: Jardinería y floristería | D12: 42 | E12: 44 | F12: 86 | G12: 17 | H12: 5 | I12: 12 | K12: 0408 - Infraestructuras e instalaciones agrícolas | L12: 0479 - Control fitosanitario | M12: 0578 - Producción de plantas y tepes en vivero | N12: 0579 - Composiciones florales y con plantas | O12: 0580 - Establecimientos de floristería | P12: 0581 - Técnicas de venta en jardinería y floristería | Q12: 1708 - Sostenibilidad aplicada al sistema productivo | R12: 1710 - Itinerario personal para la empleabilidad II
A13: 10 | B13: AGA205 (LFP) | C13: Aprovechamiento del medio natural | D13: 44 | E13: 42 | F13: 86 | G13: 17 | H13: 5 | I13: 12 | K13: 0479 - Control fitosanitario | L13: 0833 - Aprovechamiento del medio natural | M13: 0834 - Conservación de las especies cinegéticas y piscícolas | N13: 0835 - Producción de planta forestal en vivero | O13: 0838 - Uso público en espacios naturales | P13: 1708 - Sostenibilidad aplicada al sistema productivo | Q13: 1710 - Itinerario personal para la empleabilidad II
A14: 11 | B14: AGA302 (LFP) | C14: Gestión forestal y del medio natural | D14: 51 | E14: 47 | F14: 98 | G14: 19 | H14: 5 | I14: 14 | K14: 0692 - Fitopatología | L14: 0790 - Técnicas de educación ambiental | M14: 0810 - Gestión de los aprovechamientos del medio forestal | N14: 0812 - Gestión cinegética | O14: 0813 - Gestión de la pesca continental | P14: 0816 - Defensa contra incendios forestales | Q14: 0817 - Proyecto intermodular de gestión forestal y conservación del medio | R14: 1710 - Itinerario personal para la empleabilidad II | S14: 1708 - Sostenibilidad aplicada al sistema productivo
A15: 12 | B15: AGA303 (LFP) | C15: Paisajismo y medio rural | D15: 48 | E15: 37 | F15: 85 | G15: 17 | H15: 5 | I15: 12 | K15: 0692 - Fitopatología | L15: 0696 - Gestión de cultivos | M15: 0697 - Diseño de jardines y restauración del paisaje | N15: 0698 - Conservación de jardines y céspedes deportivos | O15: 0699 - Proyecto intermodular de paisajismo y medio rural | P15: 1710 - Itinerario personal para la empleabilidad II | Q15: 1708 - Sostenibilidad aplicada al sistema productivo
A16: 13 | B16: AGA304 (LFP) | C16: Ganadería y asistencia en sanidad animal | D16: 39 | E16: 41 | F16: 80 | G16: 16 | H16: 4 | I16: 12 | K16: 1276 - Gestión de la recría de caballos | L16: 1277 - Organización y supervisión de la doma y manejo de équidos | M16: 1279 - Saneamiento ganadero | N16: 1280 - Asistencia a la atención veterinaria | O16: 1281 - Bioseguridad | P16: 1283 - Proyecto intermodal de ganadería y asistencia en sanidad animal | Q16: 1710 - Itinerario personal para la empleabilidad II | R16: 1708 - Sostenibilidad aplicada al sistema productivo
A17: 14 | B17: ARG202 (LFP) | C17: Impresión gráfica | D17: 36 | E17: 37 | F17: 73 | G17: 14 | H17: 4 | I17: 10 | K17: 0869 - Impresión digital | L17: 0878 - Desarrollo de la tirada offset | M17: 0879 - Impresión en flexografía | N17: 0883 - Impresión en bajorrelieve | O17: 1708 - Sostenibilidad aplicada al sistema productivo | P17: 1710 - Itinerario personal para la empleabilidad II
A18: 15 | B18: ARG203 (LFP) | C18: Preimpresión digital | D18: 39 | E18: 38 | F18: 77 | G18: 15 | H18: 4 | I18: 11 | K18: 0868 - Imposición y obtención digital de la forma impresora | L18: 0869 - Impresión digital | M18: 0870 - Compaginación | N18: 0872 - Ensamblado de publicaciones electrónicas | O18: 1708 - Sostenibilidad aplicada al sistema productivo | P18: 1710 - Itinerario personal para la empleabilidad II
A19: 16 | B19: ARG301 (LFP) | C19: Diseño y edición de publicaciones impresas y multimedia | D19: 40 | E19: 39 | F19: 79 | G19: 15 | H19: 4 | I19: 11 | K19: 1481 - Gestión de la producción en procesos de edición | L19: 1482 - Producción editorial | M19: 1483 - Diseño estructural de envase y embalaje | N19: 1484 - Diseño y planificación de proyectos editoriales multimedia | O19: 1485 - Desarrollo y publicación de productos editoriales multimedia | P19: 1486 - Proyecto intermodular de diseño y edición de publicaciones impresas y multimedia | Q19: 1710 - Itinerario personal para la empleabilidad II | R19: 1708 - Sostenibilidad aplicada al sistema productivo
A20: 17 | B20: ARG302 (LFP) | C20: Diseño y gestión de la producción gráfica | D20: 40 | E20: 42 | F20: 82 | G20: 16 | H20: 4 | I20: 12 | K20: 1538 - Gestión de la producción en la industria gráfica | L20: 1539 - Gestión del color | M20: 1540 - Organización de los procesos de impresión gráfica | N20: 1541 - Organización de los procesos de postimpresión, transformados y acabados | O20: 1542 - Proyecto de diseño y gestión de la producción gráfica | P20: 1710 - Itinerario personal para la empleabilidad II | Q20: 1708 - Sostenibilidad aplicada al sistema productivo
A21: 18 | B21: COM201 (LFP) | C21: Actividades comerciales | D21: 48 | E21: 44 | F21: 92 | G21: 18 | H21: 5 | I21: 13 | K21: 1227 - Gestión de un pequeño comercio | L21: 1228 - Técnicas de almacén | M21: 1230 - Venta técnica | N21: 1234 - Servicios de atención comercial | O21: 1235 - Comercio electrónicol | P21: 1708 - Sostenibilidad aplicada al sistema productivo | Q21: 1710 - Itinerario personal para la empleabilidad II
A22: 19 | B22: COM202 (LFP) | C22: Comercialización de productos alimentarios | D22: 45 | E22: 31 | F22: 76 | G22: 15 | H22: 4 | I22: 11 | K22: 1611 - Preparación y acondicionamiento de productos frescos y transformados | L22: 1612 - Logística de productos alimentarios | M22: 1613 - Comercio electrónico en negocios alimentarios | N22: 1615 - Gestión de un comercio alimentario | O22: 1708 - Sostenibilidad aplicada al sistema productivo | P22: 1710 - Itinerario personal para la empleabilidad II
A23: 20 | B23: COM301 (LFP) | C23: Comercio internacional | D23: 41 | E23: 46 | F23: 87 | G23: 17 | H23: 5 | I23: 12 | K23: 0822 - Sistema de información de mercados | L23: 0823 - Marketing internacional | M23: 0824 - Negociación internacional | N23: 0825 - Financiación internacional | O23: 0826 - Medios de pago internacionales | P23: 0827 - Comercio digital internacional | Q23: 0828 - Proyecto intermodular de comercio internacional | R23: 1710 - Itinerario personal para la empleabilidad II | S23: 1708 - Sostenibilidad aplicada al sistema productivo
A24: 21 | B24: COM302 (LFP) | C24: Gestión de ventas y espacios comerciales | D24: 45 | E24: 54 | F24: 99 | G24: 19 | H24: 5 | I24: 14 | K24: 0926 - Escaparatismo y diseño de espacios comerciales | L24: 0927 - Gestión de productos y promociones en el punto de venta | M24: 0928 - Organización de equipos de venta | N24: 0929 - Técnicas de venta y negociación | O24: 0625 - Logística de almacenamiento | P24: 0626 - Logística de aprovisionamiento | Q24: 0932 - Proyecto intermodular de gestión de ventas y espacios comerciales | R24: 1710 - Itinerario personal para la empleabilidad II | S24: 1708 - Sostenibilidad aplicada al sistema productivo
A25: 22 | B25: COM303 (LFP) | C25: Transporte y logística | D25: 41 | E25: 47 | F25: 88 | G25: 17 | H25: 5 | I25: 12 | K25: 0621 - Gestión administrativa del transporte y la logística | L25: 0624 - Comercialización del transporte y la logística | M25: 0626 - Logística de aprovisionamiento | N25: 0628 - Organización del transporte de viajeros | O25: 0629 - Organización del transporte de mercancías | P25: 0630 - Proyecto de transporte y logística | Q25: 1710 - Itinerario personal para la empleabilidad II | R25: 1708 - Sostenibilidad aplicada al sistema productivo
A26: 23 | B26: COM304 (LFP) | C26: Marketing y publicidad | D26: 46 | E26: 49 | F26: 95 | G26: 19 | H26: 5 | I26: 14 | K26: 1007 - Diseño y elaboración de material de comunicación | L26: 1008 - Medios y soportes de comunicación | M26: 1009 - Relaciones públicas y organización de eventos de marketing | N26: 1011 - Trabajo de campo en la investigación comercial | O26: 1109 - Lanzamiento de productos y servicios | P26: 1110 - Atención al cliente, consumidor y usuario | Q26: 1012 - Proyecto intermodular de marketing y publicidad | R26: 1710 - Itinerario personal para la empleabilidad II | S26: 1708 - Sostenibilidad aplicada al sistema productivo
A27: 24 | B27: ELE202 (LFP) | C27: Instalaciones eléctricas y automáticas | D27: 48 | E27: 46 | F27: 94 | G27: 18 | H27: 5 | I27: 13 | K27: 0236 - Instalaciones de distribución | L27: 0237 - Infraestructuras comunes de telecomunicación en viviendas y edificios | M27: 0238 - Instalaciones domóticas | N27: 0239 - Instalaciones solares fotovoltaicas | O27: 0240 - Máquinas eléctricas | P27: 1708 - Sostenibilidad aplicada al sistema productivo | Q27: 1710 - Itinerario personal para la empleabilidad II
A28: 25 | B28: ELE203 (LFP) | C28: Instaciones de telecomunicaciones | D28: 53 | E28: 40 | F28: 93 | G28: 18 | H28: 5 | I28: 13 | K28: 0238 - Instalaciones Domóticas | L28: 0363 - Instalaciones de Megafonía y Sonorización | M28: 0364 - Circuito Cerrado de Televisión y Seguridad Electrónica | N28: 0365 - Instalaciones de radiocomunicaciones | O28: 1708 - Sostenibilidad aplicada al sistema productivo | P28: 1710 - Itinerario personal para la empleabilidad II
A29: 26 | B29: ELE301 (LFP) | C29: Mantenimiento electrónico | D29: 42 | E29: 46 | F29: 88 | G29: 17 | H29: 5 | I29: 12 | K29: 1053 - Mantenimiento de equipos de radiocomunicaciones | L29: 1054 - Mantenimiento de equipos de voz y datos | M29: 1056 - Mantenimiento de equipos de audio | N29: 1057 - Mantenimiento de equipos de vídeo | O29: 1059 - Infraestructuras y desarrollo del mantenimiento electrónico | P29: 1060 - Proyecto intermodular de mantenimiento electrónico | Q29: 1710 - Itinerario personal para la empleabilidad II | R29: 1708 - Sostenibilidad aplicada al sistema productivo
A30: 27 | B30: ELE302 (LFP) | C30: Sistemas electrónicos y automatizados | D30: 53 | E30: 38 | F30: 91 | G30: 18 | H30: 5 | I30: 13 | K30: 0518 - Técnicas y procesos en instalaciones eléctricas | L30: 0521 - Técnicas y procesos en instalaciones domóticas y automáticas | M30: 0522 - Desarrollo de redes eléctricas y centros de transformación | N30: 0526 - Proyecto intermodular de sistemas electrotécnicos y automatizados | O30: 1710 - Itinerario personal para la empleabilidad II | P30: 1708 - Sostenibilidad aplicada al sistema productivo
A31: 28 | B31: ELE303 (LFP) | C31: Automatización y robótica industrial | D31: 54 | E31: 40 | F31: 94 | G31: 18 | H31: 5 | I31: 13 | K31: 0965 - Sistemas programables avanzados | L31: 0966 - Robótica industrial | M31: 0967 - Comunicaciones industriales | N31: 0968 - Integración de sistemas de automatización industrial | O31: 0969 - Proyecto intermodular de automatización y robótica industrial | P31: 1710 - Itinerario personal para la empleabilidad II | Q31: 1708 - Sostenibilidad aplicada al sistema productivo
A32: 29 | B32: ELE304 (LFP) | C32: Sistemas de telecomunicaciones e informáticas | D32: 59 | E32: 43 | F32: 102 | G32: 20 | H32: 6 | I32: 14 | K32: 0553 - Técnicas y procesos en infraestructuras de telecomunicaciones | L32: 0555 - Redes telemáticas | M32: 0556 - Sistemas de radiocomunicaciones | N32: 0557 - Sistemas integrados y hogar digital | O32: 0558 - Proyecto intermodular de sistemas de telecomunicaciones e informáticos | P32: 1710 - Itinerario personal para la empleabilidad II | Q32: 1708 - Sostenibilidad aplicada al sistema productivo
A33: 30 | B33: ELE305 (LFP) | C33: Electromedecina clínica | D33: 51 | E33: 53 | F33: 104 | G33: 20 | H33: 6 | I33: 14 | K33: 1586 - Sistemas electromecánicos y de fluidos | L33: 1590 - Sistemas de laboratorio y hemodiálisis | M33: 1591 - Sistemas de rehabilitación y pruebas funcionales | N33: 1593 - Planificación de la adquisición de sistemas de electromedicina | O33: 1594 - Gestión del montaje y mantenimiento de sistemas de electromedicina | P33: 1595 - Proyecto intermodular de electromedicina clínica | Q33: 1710 - Itinerario personal para la empleabilidad II | R33: 1708 - Sostenibilidad aplicada al sistema productivo
A34: 31 | B34: ENA201 (LFP) | C34: Redes y estaciones de tratamientos de agua | D34: 48 | E34: 40 | F34: 80 | G34: 17 | H34: 5 | I34: 12 | K34: 1560 - Estaciones de tratamiento de aguas | L34: 1563 - Montaje y puesta en servicio de redes de agua | M34: 1566 - Mantenimiento de equipos e instalaciones | N34: 1708 - Sostenibilidad aplicada al sistema productivo | O34: 1568 - Mantenimiento de redes | P34: 0310 - Montaje y mantenimiento de instalaciones de agua | Q34: 1710 - Itinerario personal para la empleabilidad II
A35: 32 | B35: ENA301 (LFP) | C35: Eficiencia energética y energía solar térmica | D35: 47 | E35: 37 | F35: 84 | G35: 16 | H35: 4 | I35: 12 | K35: 0349 - Eficiencia energética de instalaciones | L35: 0350 - Certificación energética de edificios | M35: 0353 - Gestión del montaje y mantenimiento de instalaciones solares térmicas | N35: 0354 - Promoción del uso eficiente de la energía y del agua | O35: 0355 - Proyecto intermodular de eficiencia energética y energía solar térmica | P35: 1710 - Itinerario personal para la empleabilidad II | Q35: 1708 - Sostenibilidad aplicada al sistema productivo
A36: 33 | B36: ENA302 (LFP) | C36: Energías renovables | D36: 56 | E36: 48 | F36: 104 | G36: 20 | H36: 6 | I36: 14 | K36: 0669 - Subestaciones eléctricas | L36: 0682 - Gestión del montaje de instalaciones solares fotovoltaicas | M36: 0683 - Gestión del montaje de parques eólicos | N36: 0684 - Operación y mantenimiento de parques eólicos | O36: 0686 - Proyecto intermodular de energías renovables | P36: 1710 - Itinerario personal para la empleabilidad II | Q36: 1708 - Sostenibilidad aplicada al sistema productivo
A37: 34 | B37: EOC201 (LFP) | C37: Obras de interior, decoración y rehabilitación | D37: 43 | E37: 42 | F37: 85 | G37: 17 | H37: 5 | I37: 12 | K37: 1195 - Particiones prefabricadas | L37: 1197 - Techos suspendidos | M37: 1198 - Revestimientos ligeros | N37: 1199 - Pintura decorativa en construcción | O37: 1200 - Organización de trabajos de interior, decoración y rehabilitación | P37: 1708 - Sostenibilidad aplicada al sistema productivo | Q37: 1710 - Itinerario personal para la empleabilidad II
A38: 35 | B38: EOC203 (LFP) | C38: Construcción | D38: 51 | E38: 41 | F38: 92 | G38: 18 | H38: 5 | I38: 13 | K38: 0999 - Encofrados | L38: 1000 - Hormigón armado | M38: 1001 - Organización de trabajos de construcción | N38: 1002 - Obras de urbanización | O38: 1004 - Cubiertas | P38: 1708 - Sostenibilidad aplicada al sistema productivo | Q38: 1710 - Itinerario personal para la empleabilidad II
A39: 36 | B39: EOC301 (LFP) | C39: Proyectos de edificación | D39: 49 | E39: 45 | F39: 94 | G39: 18 | H39: 5 | I39: 13 | K39: 0569 - Eficiencia energética en edificación | L39: 0571 - Desarrollo de proyectos de edificación no residencial | M39: 0572 - Proyecto intermodular en edificación | N39: 0564 - Mediciones y valoraciones de construcción | O39: 0566 - Planificación de construcción | P39: 0570 - Desarrollo de proyectos de edificación residencial | Q39: 1710 - Itinerario personal para la empleabilidad II | R39: 1708 - Sostenibilidad aplicada al sistema productivo
A40: 37 | B40: EOC302 (LFP) | C40: Proyectos de obra civil | D40: 47 | E40: 44 | F40: 91 | G40: 18 | H40: 5 | I40: 13 | K40: 0564 - Mediciones y valoraciones de construcción | L40: 0566 - Planificación de construcción | M40: 0771 - Levantamientos topográficos | N40: 0772 - Desarrollo de proyectos urbanísticos | O40: 0773 - Desarrollo de proyectos de obras lineales | P40: 0774 - Proyecto intermodular en obra civil | Q40: 1710 - Itinerario personal para la empleabilidad II | R40: 1708 - Sostenibilidad aplicada al sistema productivo
A41: 38 | B41: EOC303 (LFP) | C41: Organización y control de obras de construcción | D41: 47 | E41: 55 | F41: 102 | G41: 20 | H41: 6 | I41: 14 | K41: 0564 - Mediciones y valoraciones de construcción | L41: 0566 - Planificación de construcción | M41: 1290 - Control de estructuras de construcción | N41: 1291 - Control de ejecución en obras de edificación | O41: 1292 - Control de ejecución en obra civil | P41: 1293 - Rehabilitación y conservación de obras de construcción | Q41: 1294 - Proyecto intermodular de organización y control de obras de construcción | R41: 1710 - Itinerario personal para la empleabilidad II | S41: 1708 - Sostenibilidad aplicada al sistema productivo
A42: 39 | B42: FME201 (LFP) | C42: Conformado por moldeo de metales y polímeros | D42: 34 | E42: 25 | F42: 59 | G42: 11 | H42: 3 | I42: 8 | K42: 0006 - Metrología y ensayos | L42: 0722 - Preparación de máquinas e instalaciones de procesos automáticos | M42: 0724 - Conformado por moldeo cerrado | N42: 1708 - Sostenibilidad aplicada al sistema productivo | O42: 1710 - Itinerario personal para la empleabilidad II
A43: 40 | B43: FME202 (LFP) | C43: Mecanizado | D43: 33 | E43: 27 | F43: 60 | G43: 12 | H43: 3 | I43: 9 | K43: 0002 - Mecanizado por Control Numérico | L43: 0003 - Fabricación por Abrasión, Electroerosión, Corte y Conformado y por Procesos Especiales | M43: 0006 - Metrología y Ensayos | N43: 1708 - Sostenibilidad aplicada al sistema productivo | O43: 1710 - Itinerario personal para la empleabilidad II
A44: 41 | B44: FME203 (LFP) | C44: Soldadura y calderería | D44: 38 | E44: 29 | F44: 67 | G44: 13 | H44: 4 | I44: 9 | K44: 0006 - Metrología y ensayos | L44: 0094 - Soldadura en atmósfera protegida | M44: 0095 - Montaje | N44: 1708 - Sostenibilidad aplicada al sistema productivo | O44: 1710 - Itinerario personal para la empleabilidad II
A45: 42 | B45: FME301 (LFP) | C45: Construcciones metálicas | D45: 40 | E45: 31 | F45: 71 | G45: 14 | H45: 4 | I45: 10 | K45: 0246 - Diseño de construcciones metálica | L45: 0162 - Programación de sistemas automáticos de fabricación mecánica | M45: 0163 - Programación de la producción | N45: 0250 - Proyecto intermodular de construcciones metálicas | O45: 1710 - Itinerario personal para la empleabilidad II | P45: 1708 - Sostenibilidad aplicada al sistema productivo
A46: 43 | B46: FME302 (LFP) | C46: Diseño en fabricación mecánica | D46: 37 | E46: 30 | F46: 67 | G46: 13 | H46: 4 | I46: 9 | K46: 0428 - Diseño de Útiles de Procesado de Chapa y Estampación | L46: 0430 - Diseño de Moldes para Productos Poliméricos | M46: 0431 - Automatización de la Fabricación | N46: 0433 - Proyecto intermodular de Diseño de Productos Mecánicos | O46: 1710 - Itinerario personal para la empleabilidad II | P46: 1708 - Sostenibilidad aplicada al sistema productivo
A47: 44 | B47: FME304 (LFP) | C47: Programación de la producción en fabricación mecánica | D47: 39 | E47: 33 | F47: 72 | G47: 14 | H47: 4 | I47: 10 | K47: 0002 - Mecanizado por control numérico | L47: 0161 - Fabricación asistida por ordenador (CAM) | M47: 0162 - Programación de sistemas automáticos de fabricación mecánica | N47: 0163 - Programación de la producción | O47: 0167 - Proyecto intermodular de fabricación de productos mecánicos | P47: 1710 - Itinerario personal para la empleabilidad II | Q47: 1708 - Sostenibilidad aplicada al sistema productivo
A48: 45 | B48: FME305 (LFP) | C48: Programación de la producción en moldeo de metales y polímeros | D48: 38 | E48: 30 | F48: 68 | G48: 13 | H48: 4 | I48: 9 | K48: 0532 - Moldeo abierto | L48: 0163 - Programación de la producción | M48: 0533 - Verificación de productos conformados | N48: 0534 - Proyecto intermodular de la programación de la producción en moldeo de metales y polímeros | O48: 1710 - Itinerario personal para la empleabilidad II | P48: 1708 - Sostenibilidad aplicada al sistema productivo
A49: 46 | B49: HOT201 (LFP) | C49: Cocina y gratronomía | D49: 38 | E49: 26 | F49: 64 | G49: 12 | H49: 3 | I49: 9 | K49: 0028 - Postres en restauración | L49: 0045 - Ofertas gastronómicas | M49: 0048 - Productos culinarios | N49: 1708 - Sostenibilidad aplicada al sistema productivo | O49: 1710 - Itinerario personal para la empleabilidad II
A50: 47 | B50: HOT203 (LFP) | C50: Servicio en restauración | D50: 39 | E50: 28 | F50: 67 | G50: 13 | H50: 4 | I50: 9 | K50: 0045 - Ofertas gastronómicas | L50: 0152 - Servicios en bar-cafetería | M50: 0153 - Servicio en restaurante y eventos especiales | N50: 0155 - Técnicas de comunicación en restauración | O50: 1708 - Sostenibilidad aplicada al sistema productivo | P50: 1710 - Itinerario personal para la empleabilidad II
A51: 48 | B51: HOT301 (LFP) | C51: Agencias de viajes y gestión de eventos | D51: 41 | E51: 37 | F51: 78 | G51: 15 | H51: 4 | I51: 11 | K51: 0173 - Marketing turístico | L51: 0397 - Gestión de productos turísticos | M51: 0398 - Venta de servicios turísticos | N51: 0180 - Segunda lengua extranjera | O51: 0400 - Proyecto intermodular de agencias de viajes y gestión de evento | P51: 1710 - Itinerario personal para la empleabilidad II | Q51: 1708 - Sostenibilidad aplicada al sistema productivo
A52: 49 | B52: HOT302 (LFP) | C52: Gestión de alojamientos turísticos | D52: 41 | E52: 38 | F52: 79 | G52: 15 | H52: 4 | I52: 11 | K52: 0173 - Marketing turístico | L52: 0174 - Dirección de alojamientos turísticos | M52: 0178 - Comercialización de eventos | N52: 0180 - Segunda lengua extranjera | O52: 0181 - Proyecto intermodular de gestión de alojamiento turístico | P52: 1710 - Itinerario personal para la empleabilidad II | Q52: 1708 - Sostenibilidad aplicada al sistema productivo
A53: 50 | B53: HOT303 (LFP) | C53: Guía, información y asistencias turísticas | D53: 40 | E53: 38 | F53: 78 | G53: 15 | H53: 4 | I53: 11 | K53: 0173 - Marketing turístico | L53: 0385 - Servicios de información turística | M53: 0386 - Procesos de guía y asistencia turística | N53: 0180 - Segunda lengua extranjera | O53: 0388 - Proyecto intermodular de guía, información y asistencia turísticas | P53: 1710 - Itinerario personal para la empleabilidad II | Q53: 1708 - Sostenibilidad aplicada al sistema productivo
A54: 51 | B54: HOT304 (LFP) | C54: Dirección de servicios de restauración | D54: 41 | E54: 42 | F54: 83 | G54: 16 | H54: 4 | I54: 12 | K54: 0511 - Sumillería | L54: 0512 - Planificación y dirección de servicios y eventos en restauración | M54: 0503 - Gestión administrativa y comercial en restauración | N54: 0504 - Recursos humanos y dirección de equipos en restauración | O54: 0180 - Segunda lengua extranjera | P54: 0513 - Proyecto intermodular de dirección de servicios en restauración | Q54: 1710 - Itinerario personal para la empleabilidad II | R54: 1708 - Sostenibilidad aplicada al sistema productivo
A55: 52 | B55: HOT305 (LFP) | C55: Dirección de cocina | D55: 39 | E55: 33 | F55: 72 | G55: 14 | H55: 4 | I55: 10 | K55: 0498 - Elaboraciones de pastelería y repostería en cocina | L55: 0500 - Gestión de la producción en cocina | M55: 0503 - Gestión administrativa y comercial en restauración | N55: 0504 - Recursos humanos y dirección de equipos en restauración | O55: 0505 - Proyecto intermodular de dirección de cocina | P55: 1710 - Itinerario personal para la empleabilidad II | Q55: 1708 - Sostenibilidad aplicada al sistema productivo
A56: 53 | B56: IEX201 (LFP) | C56: Excavaciones y sondeos | D56: 47 | E56: 35 | F56: 82 | G56: 16 | H56: 4 | I56: 12 | K56: 1031 - Técnicas de voladuras | L56: 1077 - Sostenimiento | M56: 1079 - Excavaciones con arranque selectivo | N56: 1080 - Operaciones de carga y transporte en excavaciones | O56: 1708 - Sostenibilidad aplicada al sistema productivo | P56: 1710 - Itinerario personal para la empleabilidad II
A57: 54 | B57: IFC201 (LFP) | C57: Sistemas microinformáticos y redes | D57: 43 | E57: 35 | F57: 78 | G57: 15 | H57: 4 | I57: 11 | K57: 0224 - Sistemas operativos en red | L57: 0226 - Seguridad informática | M57: 0227 - Servicios en red | N57: 0228 - Aplicaciones web | O57: 1708 - Sostenibilidad aplicada al sistema productivo | P57: 1710 - Itinerario personal para la empleabilidad II
A58: 55 | B58: IFC301 (LFP) | C58: Administración de sistemas informáticos en red | D58: 49 | E58: 50 | F58: 99 | G58: 19 | H58: 5 | I58: 14 | K58: 0374 - Administración de sistema operativos | L58: 0375 - Servicios de red e internets | M58: 0376 - Implantación de aplicaciones web | N58: 0377 - Administración de sistemas gestores de bases de datos | O58: 0378 - Seguridad y alta disponibilidad | P58: 0379 - Proyecto intermodular de administración de sistemas informáticos en red | Q58: 1710 - Itinerario personal para la empleabilidad II | R58: 1708 - Sostenibilidad aplicada al sistema productivo
A59: 56 | B59: IFC302 (LFP) | C59: Desarrollo de aplicaciones multiplataforma | D59: 52 | E59: 44 | F59: 96 | G59: 19 | H59: 5 | I59: 14 | K59: 0486 - Acceso a datos | L59: 0488 - Desarrollo de interfaces | M59: 0489 - Programación multimedia y dispositivos móviles | N59: 0490 - Programación de servicios y procesos | O59: 0491 - Sistemas de gestión empresarial | P59: 0492 - Proyecto intermodular de desarrollo de aplicaciones multiplataforma | Q59: 1710 - Itinerario personal para la empleabilidad II | R59: 1708 - Sostenibilidad aplicada al sistema productivo
A60: 57 | B60: IFC303 (LFP) | C60: Desarrollo de aplicaciones web | D60: 52 | E60: 43 | F60: 95 | G60: 19 | H60: 5 | I60: 14 | K60: 0612 - Desarrollo web en entorno cliente | L60: 0613 - Desarrollo web en entorno servidor | M60: 0614 - Despliegue de aplicaciones web | N60: 0615 - Diseño de interfaces web | O60: 0616 - Proyecto intermodular de desarrollo de aplicaciones Web | P60: 1710 - Itinerario personal para la empleabilidad II | Q60: 1708 - Sostenibilidad aplicada al sistema productivo
A61: 58 | B61: IMA201 (LFP) | C61: Mantenimiento electromecánico | D61: 44 | E61: 32 | F61: 76 | G61: 15 | H61: 4 | I61: 11 | K61: 0953 - Montaje y mantenimiento mecánico | L61: 0954 - Montaje y mantenimiento eléctrico-electrónico | M61: 0955 - Montaje y mantenimiento de líneas automatizadas | N61: 1708 - Sostenibilidad aplicada al sistema productivo | O61: 1710 - Itinerario personal para la empleabilidad II
A62: 59 | B62: IMA202 (LFP) | C62: Instalaciones frigoríficas y de climatización | D62: 39 | E62: 40 | F62: 79 | G62: 15 | H62: 4 | I62: 11 | K62: 0039 - Configuración de instalaciones de frío y climatización | L62: 0040 - Montaje y mantenimiento de equipos de refrigeración comercial | M62: 0041 - Montaje y mantenimiento de instalaciones frigoríficas industriales | N62: 0042 - Montaje y mantenimiento de instalaciones de climatización, ventilación y extracción | O62: 1708 - Sostenibilidad aplicada al sistema productivo | P62: 1710 - Itinerario personal para la empleabilidad II
A63: 60 | B63: IMA203 (LFP) | C63: Instalaciones de producción de calor | D63: 39 | E63: 47 | F63: 86 | G63: 17 | H63: 5 | I63: 12 | K63: 0266 - Configuración de instalaciones caloríficas | L63: 0302 - Montaje y mantenimiento de instalaciones caloríficas | M63: 0310 - Montaje y mantenimiento de instalaciones de agua | N63: 0392 - Montaje y mantenimiento de instalaciones de energía solar | O63: 0393 - Montaje y mantenimiento de instalaciones de gas y combustibles líquidos | P63: 1708 - Sostenibilidad aplicada al sistema productivo | Q63: 1710 - Itinerario personal para la empleabilidad II
A64: 61 | B64: IMA301 (LFP) | C64: Mantenimiento de instalaciones térmicas y de fluidos | D64: 44 | E64: 43 | F64: 87 | G64: 17 | H64: 5 | I64: 12 | K64: 0124 - Energías renovables y eficiencia energética | L64: 0133 - Gestión del montaje, de la calidad y del mantenimiento | M64: 0134 - Configuración de instalaciones térmicas y de fluidos | N64: 0135 - Mantenimiento de instalaciones frigoríficas y de climatización | O64: 0136 - Mantenimiento de instalaciones caloríficas y de fluidos | P64: 0137 - Proyecto intermodular de mantenimiento de instalaciones térmicas y de fluidos | Q64: 1710 - Itinerario personal para la empleabilidad II | R64: 1708 - Sostenibilidad aplicada al sistema productivo
A65: 62 | B65: IMA302 (LFP) | C65: Mecatrónica industrial | D65: 46 | E65: 44 | F65: 90 | G65: 18 | H65: 5 | I65: 13 | K65: 0935 - Sistemas mecánicos | L65: 0941 - Configuración de sistemas mecatrónicos | M65: 0942 - Procesos y gestión del mantenimiento y de la calidad | N65: 0943 - Integración de sistemas | O65: 0944 - Simulación de sistemas mecatrónicos | P65: 0945 - Proyecto intermodular de mecatrónica industrial | Q65: 1710 - Itinerario personal para la empleabilidad II | R65: 1708 - Sostenibilidad aplicada al sistema productivo
A66: 63 | B66: IMA303 (LFP) | C66: Desarrollo de proyectos de instalaciones térmicas y de fluidos | D66: 44 | E66: 40 | F66: 84 | G66: 16 | H66: 4 | I66: 12 | K66: 0124 - Energías renovables y eficiencia energética | L66: 0125 - Configuración de instalaciones de climatización, calefacción y ACS | M66: 0126 - Configuración de instalaciones frigoríficas | N66: 0127 - Configuración de instalaciones de fluidos | O66: 0128 - Planificación del montaje de instalaciones | P66: 0129 - Proyecto intermodular de instalaciones térmicas y de fluidos | Q66: 1710 - Itinerario personal para la empleabilidad II | R66: 1708 - Sostenibilidad aplicada al sistema productivo
A67: 64 | B67: IMP202 (LFP) | C67: Estética y belleza | D67: 46 | E67: 46 | F67: 92 | G67: 18 | H67: 5 | I67: 13 | K67: 0635 - Depilación mecánica y decoloración del vello | L67: 0637 - Técnicas de uñas artificiales | M67: 0639 - Actividades en cabina de estética | N67: 0640 - Imagen corporal y hábitos saludables | O67: 0642 - Perfumería y cosmética natural | P67: 0643 - Marketing y venta en Imagen Personal | Q67: 1708 - Sostenibilidad aplicada al sistema productivo | R67: 1710 - Itinerario personal para la empleabilidad II
A68: 65 | B68: IMP203 (LFP) | C68: Peluquería y cosmética capilar | D68: 46 | E68: 43 | F68: 89 | G68: 17 | H68: 5 | I68: 12 | K68: 0640 - Imagen corporal y hábitos saludables | L68: 0643 - Marketing y venta en imagen personal | M68: 0843 - Coloración capilar | N68: 0846 - Cambios de forma permanente del cabello | O68: 0848 - Peluquería y estilismo masculino | P68: 1708 - Sostenibilidad aplicada al sistema productivo | Q68: 1710 - Itinerario personal para la empleabilidad II
A69: 66 | B69: IMP301 (LFP) | C69: Asesoría de imagen personal y corporativa | D69: 48 | E69: 48 | F69: 96 | G69: 19 | H69: 5 | I69: 14 | K69: 1184 - Asesoría de peluquería | L69: 1185 - Protocolo y organización de eventos | M69: 1186 - Usos sociales | N69: 1189 - Imagen corporativa | O69: 1071 - Dirección y comercialización | P69: 1190 - Proyecto intermodular de asesoría de imagen personal y corporativa | Q69: 1710 - Itinerario personal para la empleabilidad II | R69: 1708 - Sostenibilidad aplicada al sistema productivo
A70: 67 | B70: IMP302 (LFP) | C70: Estética integral y biesnestar | D70: 55 | E70: 42 | F70: 97 | G70: 19 | H70: 5 | I70: 14 | K70: 0745 - Estética hidrotermal | L70: 0746 - Depilación avanzada | M70: 0748 - Drenaje estético y técnicas por presión | N70: 0753 - Tratamiento estéticos integrales | O70: 0754 - Proyecto intermodular de estética integral y bienestar | P70: 1710 - Itinerario personal para la empleabilidad II | Q70: 1708 - Sostenibilidad aplicada al sistema productivo
A71: 68 | B71: IMP303 (LFP) | C71: Estilismo y dirección de peluquería | D71: 49 | E71: 51 | F71: 100 | G71: 20 | H71: 6 | I71: 14 | K71: 1066 - Tratamientos capilares | L71: 1068 - Peinados para producciones audiovisuales y de moda | M71: 1069 - Estilismo en peluquería | N71: 1070 - Estudio de la imagen | O71: 1071 - Dirección y comercialización | P71: 1073 - Proyecto intermodular de estilismo y dirección de peluquería | Q71: 1710 - Itinerario personal para la empleabilidad II | R71: 1708 - Sostenibilidad aplicada al sistema productivo
A72: 69 | B72: IMP304 (LFP) | C72: Termalismo y bienestar | D72: 43 | E72: 38 | F72: 81 | G72: 16 | H72: 4 | I72: 12 | K72: 0212 - Características y necesidades de las personas en situación de dependencia | L72: 0745 - Estética hidrotermal | M72: 1124 - Dinamización grupal | N72: 1152 - Técnicas de hidrocinesia | O72: 1647 - Proyecto intermodular de termalismo y bienestar | P72: 1710 - Itinerario personal para la empleabilidad II | Q72: 1708 - Sostenibilidad aplicada al sistema productivo
A73: 70 | B73: IMS202 (LFP) | C73: Vídeo disc - jokey y sonido | D73: 36 | E73: 27 | F73: 63 | G73: 12 | H73: 3 | I73: 9 | K73: 1300 - Control, edición y mezcla de sonido | L73: 1302 - Animación musical en vivo | M73: 1303 - Animación visual en vivo | N73: 1708 - Sostenibilidad aplicada al sistema productivo | O73: 1710 - Itinerario personal para la empleabilidad II
A74: 71 | B74: IMS301 (LFP) | C74: Iluminación, captación y tratamiento de imagen | D74: 50 | E74: 36 | F74: 86 | G74: 17 | H74: 5 | I74: 12 | K74: 1158 - Planificación de cámara en audiovisuales | L74: 1159 - Toma de imagen audiovisual | M74: 1160 - Proyectos de iluminación | N74: 1167 - Grabación y edición de reportajes audiovisuales | O74: 1168 - Proyecto intermodular de iluminación, captación y tratamiento de imagen | P74: 1710 - Itinerario personal para la empleabilidad II | Q74: 1708 - Sostenibilidad aplicada al sistema productivo
A75: 72 | B75: IMS302 (LFP) | C75: Producción de audiovisuales y espectáculos | D75: 41 | E75: 36 | F75: 77 | G75: 15 | H75: 4 | I75: 11 | K75: 0916 - Gestión de proyectos de cine, vídeo y multimedia | L75: 0917 - Gestión de proyectos de televisión y radio | M75: 0919 - Gestión de proyectos de espectáculos y eventos | N75: 0921 - Administración y promoción de audiovisuales y espectáculos | O75: 0922 - Proyecto intermodular de producción de audiovisuales y espectáculos | P75: 1710 - Itinerario personal para la empleabilidad II | Q75: 1708 - Sostenibilidad aplicada al sistema productivo
A76: 73 | B76: IMS303 (LFP) | C76: Realización de proyectos audiovisuales y espectáculos | D76: 45 | E76: 38 | F76: 83 | G76: 16 | H76: 4 | I76: 12 | K76: 0904 - Planificación de la realización en televisión | L76: 0905 - Procesos de realización en televisión | M76: 0907 - Realización del montaje y postproducción de audiovisuales | N76: 0909 - Procesos de regiduría de espectáculos y eventos | O76: 0911 - Proyecto intermodular de realización de proyectos de audiovisuales y espectáculos | P76: 1710 - Itinerario personal para la empleabilidad II | Q76: 1708 - Sostenibilidad aplicada al sistema productivo
A77: 74 | B77: IMS304 (LFP) | C77: Sonido para audivisuales y espectáctulos | D77: 43 | E77: 35 | F77: 78 | G77: 15 | H77: 4 | I77: 11 | K77: 1099 - Control de sonido en directo | L77: 1100 - Grabación en estudio | M77: 1101 - Ajustes de sistemas de sonorización | N77: 1102 - Postproducción de sonido | O77: 1105 - Proyecto intermodular de sonido para audiovisuales y espectáculos | P77: 1710 - Itinerario personal para la empleabilidad II | Q77: 1708 - Sostenibilidad aplicada al sistema productivo
A78: 75 | B78: IMS305 (LFP) | C78: Animaciones 3D, juegos y entornos interactivos | D78: 40 | E78: 36 | F78: 76 | G78: 15 | H78: 4 | I78: 11 | K78: 1085 - Proyectos de animación audiovisual 2D y 3D | L78: 1089 - Proyectos de juegos y entornos interactivos | M78: 1091 - Desarrollo de entornos interactivos multidispositivo | N78: 0907 - Realización del montaje y postproducción de audiovisuales | O78: 1093 - Proyecto intermodular de animaciones 3D, juegos y entornos interactivos | P78: 1710 - Itinerario personal para la empleabilidad II | Q78: 1708 - Sostenibilidad aplicada al sistema productivo
A79: 76 | B79: INA201 (LFP) | C79: Elaboración de productos alimenticios | D79: 41 | E79: 32 | F79: 73 | G79: 14 | H79: 4 | I79: 10 | K79: 0030 - Operaciones y control de almacén en la industria alimentaria | L79: 0116 - Principios de mantenimiento electromecánico | M79: 0144 - Procesado de productos alimenticios | N79: 0146 - Venta y comercialización de productos alimentarios | O79: 1708 - Sostenibilidad aplicada al sistema productivo | P79: 1710 - Itinerario personal para la empleabilidad II
A80: 77 | B80: INA204 (LFP) | C80: Aceites de oliva y vinos | D80: 43 | E80: 37 | F80: 80 | G80: 16 | H80: 4 | I80: 12 | K80: 0030 - Operaciones y control de almacén en la industria alimentaria | L80: 0116 - Principios de mantenimiento electromecánico | M80: 0318 - Elaboración de vinos | N80: 0319 - Acondicionamiento de aceites de oliva | O80: 0321 - Análisis sensorial | P80: 1708 - Sostenibilidad aplicada al sistema productivo | Q80: 1710 - Itinerario personal para la empleabilidad II
A81: 78 | B81: INA207 (LFP) | C81: Pandería, respostería y confetería | D81: 43 | E81: 35 | F81: 78 | G81: 15 | H81: 4 | I81: 11 | K81: 0027 - Elaboraciones de confitería y otras especialidades | L81: 0028 - Postres en restauración | M81: 0029 - Productos de obrador | N81: 0032 - Presentación y venta de productos de panadería y pastelería | O81: 1708 - Sostenibilidad aplicada al sistema productivo | P81: 1710 - Itinerario personal para la empleabilidad II
A82: 79 | B82: INA301 (LFP) | C82: Procesos y calidad en la industria alimentaria | D82: 43 | E82: 48 | F82: 91 | G82: 18 | H82: 5 | I82: 13 | K82: 0463 - Biotecnología alimentaria | L82: 0466 - Organización de la producción alimentaria | M82: 0084 - Comercialización y logística en la industria alimentaria | N82: 0086 - Gestión de calidad y ambiental en la industria alimentaria | O82: 0191 - Mantenimiento electromecánico en industrias de proceso | P82: 0469 - Procesos integrados en la industria alimentaria | Q82: 0470 - Innovación alimentaria | R82: 0471 - Proyecto intermodular en procesos y calidad en la industria alimentaria | S82: 1710 - Itinerario personal para la empleabilidad II | T82: 1708 - Sostenibilidad aplicada al sistema productivo
A83: 80 | B83: INA302 (LFP) | C83: Vitinivicultura | D83: 44 | E83: 42 | F83: 86 | G83: 17 | H83: 5 | I83: 12 | K83: 0080 - Estabilización, crianza y envasado | L83: 0082 - Industrias derivadas | M83: 0083 - Cata y cultura vitivinícola | N83: 0084 - Comercialización y logística en la industria alimentaria | O83: 0086 - Gestión de calidad y ambiental en la industria alimentaria | P83: 0087 - Proyecto intermodular en la industria vitivinícola | Q83: 1710 - Itinerario personal para la empleabilidad II | R83: 1708 - Sostenibilidad aplicada al sistema productivo
A84: 81 | B84: MAM201 (LFP) | C84: Instalación y amueblamiento | D84: 46 | E84: 35 | F84: 81 | G84: 16 | H84: 4 | I84: 12 | K84: 0778 - Planificación de la instalación | L84: 0779 - Instalación de mobiliario | M84: 0780 - Instalación de carpintería | N84: 0781 - Instalación de estructuras de madera | O84: 1708 - Sostenibilidad aplicada al sistema productivo | P84: 1710 - Itinerario personal para la empleabilidad II
A85: 82 | B85: MAM202 (LFP) | C85: Carpintería y mueble | D85: 46 | E85: 38 | F85: 84 | G85: 16 | H85: 4 | I85: 12 | K85: 0543 - Documentación técnica | L85: 0544 - Mecanizado de madera y derivados | M85: 0545 - Mecanizado por control numérico en carpintería y mueble | N85: 0546 - Montaje de carpintería y mueble | O85: 0547 - Acabados en carpintería y mueble | P85: 1708 - Sostenibilidad aplicada al sistema productivo | Q85: 1710 - Itinerario personal para la empleabilidad II
A86: 83 | B86: MAM301 (LFP) | C86: Diseño y amueblamiento | D86: 48 | E86: 40 | F86: 88 | G86: 17 | H86: 5 | I86: 12 | K86: 0987 - Automatización en carpintería y mueble | L86: 0988 - Instalaciones en carpintería y mobiliario | M86: 0989 - Diseño de carpintería y mueble | N86: 0990 - Gestión de la producción en carpintería y mueble | O86: 0991 - Proyecto intermodular de diseño y amueblamiento | P86: 1710 - Itinerario personal para la empleabilidad II | Q86: 1708 - Sostenibilidad aplicada al sistema productivo
A87: 84 | B87: QUI201 (LFP) | C87: Operaciones de laboratorio | D87: 44 | E87: 32 | F87: 76 | G87: 15 | H87: 4 | I87: 11 | K87: 1252 - Servicios auxiliares en el laboratorio | L87: 1255 - Operaciones de análisis químico | M87: 1256 - Ensayos de materiales | N87: 1257 - Almacenamiento y distribución en el laboratorio | O87: 0116 - Principios de mantenimiento electromecánico | P87: 1708 - Sostenibilidad aplicada al sistema productivo | Q87: 1710 - Itinerario personal para la empleabilidad II
A88: 85 | B88: QUI204 (LFP) | C88: Planta química | D88: 32 | E88: 33 | F88: 65 | G88: 13 | H88: 4 | I88: 9 | K88: 0112 - Control de procesos químicos industriales | L88: 0113 - Operaciones de generación y transferencia de energía en proceso químico | M88: 0115 - Tratamiento de aguas | N88: 0116 - Principios de mantenimiento electromecánico | O88: 1708 - Sostenibilidad aplicada al sistema productivo | P88: 1710 - Itinerario personal para la empleabilidad II
A89: 86 | B89: QUI301 (LFP) | C89: Laboratorio de análisis y control de calidad | D89: 33 | E89: 32 | F89: 65 | G89: 13 | H89: 4 | I89: 9 | K89: 0067 - Análisis instrumental | L89: 0068 - Ensayos físicos | M89: 0071 - Ensayos biotecnológicos | N89: 0072 - Calidad y seguridad en el laboratorio | O89: 0073 - Proyecto de laboratorio de análisis y de control de calidad | P89: 1710 - Itinerario personal para la empleabilidad II | Q89: 1708 - Sostenibilidad aplicada al sistema productivo
A90: 87 | B90: QUI302 (LFP) | C90: Fabricación de productos farmacéuticos, biotecnológicos y afines | D90: 50 | E90: 42 | F90: 92 | G90: 18 | H90: 5 | I90: 13 | K90: 1393 - Técnicas de producción biotecnológic | L90: 1394 - Técnicas de producción farmacéutica y afine | M90: 1395 - Regulación y control en la industria farmacéutica, biotecnológica y afine | N90: 1396 - Acondicionamiento y almacenamiento de productos farmacéuticos, biotecnológicos y afine | O90: 0191 - Mantenimiento electromecánico en industrias de proces | P90: 1397 - Proyecto intermodular de fabricación de productos farmacéuticos, biotecnológicos y afine | Q90: 1710 - Itinerario personal para la empleabilidad II | R90: 1708 - Sostenibilidad aplicada al sistema productivo
A91: 88 | B91: QUI304 (LFP) | C91: Química industrial | D91: 40 | E91: 35 | F91: 75 | G91: 15 | H91: 4 | I91: 11 | K91: 0185 - Organización y gestión en industrias químicas | L91: 0187 - Generación y recuperación de energía | M91: 0190 - Regulación y control de proceso químico | N91: 0191 - Mantenimiento electromecánico en industrias de proceso | O91: 0195 - Proyecto intermodular de industrias de proceso químicos | P91: 1710 - Itinerario personal para la empleabilidad II | Q91: 1708 - Sostenibilidad aplicada al sistema productivo
A92: 89 | B92: SAN202 (LFP) | C92: Farmacia y parfarmacia | D92: 46 | E92: 26 | F92: 72 | G92: 14 | H92: 4 | I92: 10 | K92: 0102 - Dispensación de productos parafarmacéuticos | L92: 0104 - Formulación magistral | M92: 0105 - Promoción de la salud | N92: 1708 - Sostenibilidad aplicada al sistema productivo | O92: 1710 - Itinerario personal para la empleabilidad II
A93: 90 | B93: SAN203 (LFP) | C93: Emergencias sanitarias | D93: 43 | E93: 31 | F93: 74 | G93: 14 | H93: 4 | I93: 10 | K93: 0053 - Logística sanitaria en emergencias | L93: 0056 - Atención sanitaria especial en situaciones de emergencia | M93: 0059 - Planes de emergencias y dispositivos de riesgos previsibles | N93: 0060 - Teleemergencia | O93: 1708 - Sostenibilidad aplicada al sistema productivo | P93: 1710 - Itinerario personal para la empleabilidad II
A94: 91 | B94: SAN301 (LFP) | C94: Anatomía patológica y citodiagnóstico | D94: 45 | E94: 40 | F94: 85 | G94: 17 | H94: 5 | I94: 12 | K94: 1379 - Necropsias | L94: 1380 - Procesamiento citológico y tisular | M94: 1381 - Citología ginecológica | N94: 1382 - Citología general | O94: 1383 - Proyecto intermodular de laboratorio de patología y citodiagnóstico | P94: 1710 - Itinerario personal para la empleabilidad II | Q94: 1708 - Sostenibilidad aplicada al sistema productivo
A95: 92 | B95: SAN303 (LFP) | C95: Documentación y administración sanitarias | D95: 57 | E95: 38 | F95: 95 | G95: 19 | H95: 5 | I95: 14 | K95: 1520 - Codificación sanitaria | L95: 1521 - Atención psicosocial al paciente/usuario | M95: 1522 - Validación y explotación de datos | N95: 1523 - Gestión administrativa sanitaria | O95: 1524 - Proyecto intermodular de documentación y administración sanitarias | P95: 1710 - Itinerario personal para la empleabilidad II | Q95: 1708 - Sostenibilidad aplicada al sistema productivo
A96: 93 | B96: SAN304 (LFP) | C96: Higiene bucodental | D96: 57 | E96: 38 | F96: 95 | G96: 19 | H96: 5 | I96: 14 | K96: 0734 - Epidemiología en salud oral | L96: 0735 - Educación para la salud oral | M96: 0736 - Conservadora, periodoncia, cirugía e implantes | N96: 0737 - Prótesis y ortodoncia | O96: 0738 - Proyecto intermodular de higiene bucodental | P96: 1710 - Itinerario personal para la empleabilidad II | Q96: 1708 - Sostenibilidad aplicada al sistema productivo
A97: 94 | B97: SAN305 (LFP) | C97: Imagen para el diagnóstico y medicina nuclear | D97: 45 | E97: 51 | F97: 96 | G97: 19 | H97: 5 | I97: 14 | K97: 1349 - Técnicas de radiología simple | L97: 1350 - Técnicas de radiología especial | M97: 1351 - Técnicas de tomografía computarizada y ecografía | N97: 1352 - Técnicas de imagen por resonancia magnética | O97: 1353 - Técnicas de imagen en medicina nuclear | P97: 1354 - Técnicas de radiofarmacia | Q97: 1355 - Proyecto intermodular de imagen para el diagnóstico y medicina nuclear | R97: 1710 - Itinerario personal para la empleabilidad II | S97: 1708 - Sostenibilidad aplicada al sistema productivo
A98: 95 | B98: SAN306 (LFP) | C98: Laboratorio clínico y biomédico | D98: 44 | E98: 44 | F98: 88 | G98: 17 | H98: 5 | I98: 12 | K98: 1371 - Análisis bioquímicol | L98: 1372 - Técnicas de inmunodiagnóstico | M98: 1373 - Microbiología clínica | N98: 1374 - Técnicas de análisis hematológico | O98: 1375 - Proyecto intermodular de laboratorio clínico y biomédic | P98: 1710 - Itinerario personal para la empleabilidad II | Q98: 1708 - Sostenibilidad aplicada al sistema productivo
A99: 96 | B99: SAN308 (LFP) | C99: Prótesis dentales | D99: 43 | E99: 42 | F99: 85 | G99: 17 | H99: 5 | I99: 12 | K99: 0857 - Restauraciones y estructuras metálicas en prótesis fija | L99: 0858 - Prótesis parciales y removibles metálicas, de resina y mixta | M99: 0859 - Restauraciones y recubrimientos estéticos | N99: 0860 - Prótesis sobre implantes | O99: 0861 - Proyecto intermodular de prótesis dentales | P99: 1710 - Itinerario personal para la empleabilidad II | Q99: 1708 - Sostenibilidad aplicada al sistema productivo
A100: 97 | B100: SAN309 (LFP) | C100: Radioterapia y dosimetría | D100: 45 | E100: 41 | F100: 86 | G100: 17 | H100: 5 | I100: 12 | K100: 1359 - Simulación del tratamiento | L100: 1360 - Dosimetría física y clínica | M100: 1361 - Tratamientos con teleterapia | N100: 1362 - Tratamientos con braquiterapia | O100: 1363 - Proyecto intermodular de radioterapia y dosimetría | P100: 1710 - Itinerario personal para la empleabilidad II | Q100: 1708 - Sostenibilidad aplicada al sistema productivo
A101: 98 | B101: SAN311 (LFP) | C101: Ortoprótesis y productos de apoyo | D101: 46 | E101: 39 | F101: 85 | G101: 17 | H101: 5 | I101: 12 | K101: 0327 - Adaptación de ortesis prefabricadas | L101: 0329 - Elaboración y adaptación de prótesis externas | M101: 0330 - Adaptación de productos de apoyo | N101: 0332 - Atención psicosocial | O101: 0333 - Proyecto intermodular de ortoprótesis y productos de apoyo | P101: 1710 - Itinerario personal para la empleabilidad II | Q101: 1708 - Sostenibilidad aplicada al sistema productivo
A102: 99 | B102: SEA201 (LFP) | C102: Emergencias y protección civil | D102: 33 | E102: 34 | F102: 67 | G102: 13 | H102: 4 | I102: 9 | K102: 1528 - Mantenimiento y comprobación del funcionamiento de los medios materiales empleados en la prevención de riesgos de incendios y emergencias | L102: 1531 - Intervención operativa en sucesos de origen natural, tecnológico y antrópico | M102: 1532 - Intervención operativa en actividades de salvamento y rescate | N102: 1533 - Inspección de establecimientos, eventos e instalaciones para la prevención de incendios y emergencias | O102: 1708 - Sostenibilidad aplicada al sistema productivo | P102: 1710 - Itinerario personal para la empleabilidad II
A103: 100 | B103: SEA202 (LFP) | C103: Seguridad | D103: 45 | E103: 33 | F103: 78 | G103: 15 | H103: 4 | I103: 11 | K103: 1675 - Habilidades sociopersonales | L103: 1677 - Acondicionamiento físico y defensa personal | M103: 1679 - Vigilancia y protección | N103: 1708 - Sostenibilidad aplicada al sistema productivo | O103: 1710 - Itinerario personal para la empleabilidad II
A104: 101 | B104: SEA301 (LFP) | C104: Educación y control ambiental | D104: 46 | E104: 40 | F104: 86 | G104: 17 | H104: 5 | I104: 12 | K104: 0787 - Actividades humanas y problemática ambiental | L104: 0790 - Técnicas de educación ambiental | M104: 0792 - Actividades de uso público | N104: 0793 - Desenvolvimiento en el medio | O104: 0017 - Habilidades sociales | P104: 0794 - Proyecto intermodular de educación y control ambiental | Q104: 1710 - Itinerario personal para la empleabilidad II | R104: 1708 - Sostenibilidad aplicada al sistema productivo
A105: 102 | B105: SEA302 (LFP) | C105: Coordinación de emergencias y protección civil | D105: 42 | E105: 41 | F105: 83 | G105: 16 | H105: 4 | I105: 12 | K105: 1503 - Planificación y desarrollo de acciones formativas, informativas y divulgativas en protección civil y emergencias | L105: 1504 - Supervisión de la intervención en riesgos producidos por fenómenos naturales | M105: 1505 - Supervisión de la intervención en riesgos tecnológicos y antrópicos | N105: 1508 - Supervisión de la intervención en operaciones de salvamento y rescate | O105: 1509 - Supervisión de las acciones de apoyo a las personas afectadas por desastres y catástrofes | P105: 1511 - Proyecto intermodular de coordinación de emergencias y protección civil | Q105: 1710 - Itinerario personal para la empleabilidad II | R105: 1708 - Sostenibilidad aplicada al sistema productivo
A106: 103 | B106: SEA303 (LFP) | C106: Química y salud ambiental | D106: 45 | E106: 36 | F106: 81 | G106: 16 | H106: 4 | I106: 12 | K106: 1547 - Educación para la salud y el medio ambiente | L106: 1550 - Salud y riesgos del medio construido | M106: 1551 - Control y seguridad alimentaria | N106: 1553 - Control de organismos nocivos | O106: 1555 - Proyecto intermodular de química y salud ambiental | P106: 1710 - Itinerario personal para la empleabilidad II | Q106: 1708 - Sostenibilidad aplicada al sistema productivo
A107: 104 | B107: SSC201 (LFP) | C107: Atención a personas en situación de dependencia | D107: 39 | E107: 34 | F107: 73 | G107: 14 | H107: 4 | I107: 10 | K107: 0210 - Organización de la atención a las personas en situación de dependencia | L107: 0214 - Apoyo a la comunicación | M107: 0215 - Apoyo domiciliario | N107: 0217 - Atención higiénica | O107: 0831 - Teleasistencia | P107: 1708 - Sostenibilidad aplicada al sistema productivo | Q107: 1710 - Itinerario personal para la empleabilidad II
A108: 105 | B108: SSC301 (LFP) | C108: Animación sociocultural y turística | D108: 47 | E108: 40 | F108: 87 | G108: 17 | H108: 5 | I108: 12 | K108: 1125 - Animación y gestión cultural | L108: 1126 - Animación turística | M108: 1129 - Información juvenil | N108: 1130 - Intervención socioeducativa con jóvenes | O108: 1132 - Proyecto intermodular de animación sociocultural y turístic | P108: 1710 - Itinerario personal para la empleabilidad II | Q108: 1708 - Sostenibilidad aplicada al sistema productivo
A109: 106 | B109: SSC302 (LFP) | C109: Educación infantil | D109: 44 | E109: 39 | F109: 83 | G109: 16 | H109: 4 | I109: 12 | K109: 0013 - El juego infantil y su metodología. | L109: 0014 - Expresión y comunicación | M109: 0016 - Desarrollo socio afectivo | N109: 0018 - Intervención con familias y atención a menores en riesgo social | O109: 0019 - Proyecto intermodular de atención a la infancia | P109: 1710 - Itinerario personal para la empleabilidad II | Q109: 1708 - Sostenibilidad aplicada al sistema productivo
A110: 107 | B110: SSC303 (LFP) | C110: Integración social | D110: 47 | E110: 34 | F110: 81 | G110: 16 | H110: 4 | I110: 12 | K110: 0339 - Atención a las unidades de convivencia | L110: 0340 - Mediación comunitaria | M110: 0341 - Apoyo a la intervención educativa | N110: 0343 - Sistemas aumentativos y alternativos de comunicación | O110: 0345 - Proyecto inermodular de integración socia | P110: 1710 - Itinerario personal para la empleabilidad II | Q110: 1708 - Sostenibilidad aplicada al sistema productivo
A111: 108 | B111: SSC304 (LFP) | C111: Mediación comunicativa | D111: 46 | E111: 41 | F111: 87 | G111: 17 | H111: 5 | I111: 12 | K111: 0343 - Sistemas aumentativos y alternativos de comunicación | L111: 1112 - Sensibilización social y participación | M111: 1113 - Intervención socioeducativa con personas sordociegas | N111: 1116 - Ámbitos de aplicación de la lengua de signos | O111: 1117 - Intervención con personas con dificultades de comunicación | P111: 1119 - Proyecto intermodular de mediación comunicativa | Q111: 1710 - Itinerario personal para la empleabilidad II | R111: 1708 - Sostenibilidad aplicada al sistema productivo
A112: 109 | B112: SSC305 (LFP) | C112: Promoción de igualdad de género | D112: 46 | E112: 36 | F112: 82 | G112: 16 | H112: 4 | I112: 12 | K112: 1402 - Prevención de la violencia de género | L112: 1403 - Promoción del empleo femenino | M112: 1405 - Participación social de las mujeres | N112: 1406 - Intervención socioeducativa para la igualdad | O112: 1407 - Proyecto intermodular de promoción de igualdad de género | P112: 1710 - Itinerario personal para la empleabilidad II | Q112: 1708 - Sostenibilidad aplicada al sistema productivo
A113: 110 | B113: SSC306 (LFP) | C113: Formación para la movilidad segura y sostenible | D113: 49 | E113: 38 | F113: 87 | G113: 17 | H113: 5 | I113: 12 | K113: 1652 - Organización de la formación de las personas conductoras | L113: 1655 - Didáctica de la enseñanza práctica de la conducción | M113: 1658 - Didáctica de la formación para la seguridad vial | N113: 1659 - Movilidad segura y sostenible | O113: 1660 - Proyecto intermodular de formación para la movilidad segura y sostenible | P113: 1710 - Itinerario personal para la empleabilidad II | Q113: 1708 - Sostenibilidad aplicada al sistema productivo
A114: 111 | B114: TCP202 (LFP) | C114: Confección y moda | D114: 39 | E114: 31 | F114: 70 | G114: 14 | H114: 4 | I114: 10 | K114: 0267 - Corte de materiales | L114: 0269 - Confección industrial | M114: 0270 - Acabados en confección | N114: 0271 - Información y atención al cliente | O114: 1708 - Sostenibilidad aplicada al sistema productivo | P114: 1710 - Itinerario personal para la empleabilidad II
A115: 112 | B115: TCP301 (LFP) | C115: Patronaje y moda | D115: 43 | E115: 38 | F115: 81 | G115: 16 | H115: 4 | I115: 12 | K115: 0165 - Gestión de la calidad, prevención de riesgos laborales y protección ambiental | L115: 0280 - Organización de la producción en confección industrial | M115: 0283 - Análisis de diseños en textil y piel | N115: 0284 - Elaboración de prototipos | O115: 0286 - Industrialización y escalado de patrone | P115: 0287 - Proyecto intermodular de patronaje y moda | Q115: 1710 - Itinerario personal para la empleabilidad II | R115: 1708 - Sostenibilidad aplicada al sistema productivo
A116: 113 | B116: TMV201 (LFP) | C116: Carrocería | D116: 36 | E116: 29 | F116: 65 | G116: 13 | H116: 4 | I116: 9 | K116: 0257 - Preparación de superficies | L116: 0258 - Elementos estructurales del vehículo | M116: 0259 - Embellecimiento de superficies | N116: 1708 - Sostenibilidad aplicada al sistema productivo | O116: 1710 - Itinerario personal para la empleabilidad II
A117: 114 | B117: TMV202 (LFP) | C117: Electromecánica de vehículos automoviles | D117: 44 | E117: 29 | F117: 73 | G117: 14 | H117: 4 | I117: 10 | K117: 0453 - Sistemas auxiliares del motor | L117: 0457 - Circuitos eléctricos auxiliares del vehículo | M117: 0458 - Sistemas de seguridad y confortabilidad | N117: 1708 - Sostenibilidad aplicada al sistema productivo | O117: 1710 - Itinerario personal para la empleabilidad II
A118: 115 | B118: TMV203 (LFP) | C118: Conducción de vehículos de transporte por carretera | D118: 43 | E118: 28 | F118: 71 | G118: 14 | H118: 4 | I118: 10 | K118: 0020 - Primeros auxilios | L118: 1205 - Conducción racional y segura | M118: 1207 - Servicios de transporte de mercancías | N118: 1708 - Sostenibilidad aplicada al sistema productivo | O118: 1710 - Itinerario personal para la empleabilidad II
A119: 116 | B119: TMV204 (LFP) | C119: Electromecánica de maquinaria | D119: 46 | E119: 32 | F119: 78 | G119: 15 | H119: 4 | I119: 11 | K119: 0715 - Sistemas de fuerza y detención | L119: 0716 - Sistemas de accionamiento de equipos y aperos | M119: 0718 - Circuitos eléctricos, electrónicos y de confortabilidad | N119: 0742 - Sistemas auxiliares del motor diésel | O119: 1708 - Sostenibilidad aplicada al sistema productivo | P119: 1710 - Itinerario personal para la empleabilidad II
A120: 117 | B120: TMV205 (LFP) | C120: Montaje de estructuras e instalaciones de sistemas aeronáuticos | D120: 48 | E120: 31 | F120: 79 | G120: 15 | H120: 4 | I120: 11 | K120: 1600 - Protección y pintado de aeronaves | L120: 1601 - Sistemas de distribución de corriente, telecomunicaciones y aviónica | M120: 1602 - Sistemas de mandos de vuelo, trenes de aterrizaje y de propulsión | N120: 1708 - Sostenibilidad aplicada al sistema productivo | O120: 1710 - Itinerario personal para la empleabilidad II
A121: 118 | B121: TMV301 (LFP) | C121: Automoción | D121: 42 | E121: 38 | F121: 80 | G121: 16 | H121: 4 | I121: 12 | K121: 0293 - Motores térmicos y sus sistemas auxiliares | L121: 0295 - Tratamiento y recubrimiento de superficies | M121: 0296 - Estructuras del vehículo | N121: 0309 - Técnicas de comunicación y de relaciones | O121: 0298 - Proyecto intermodular en automoción | P121: 1710 - Itinerario personal para la empleabilidad II | Q121: 1708 - Sostenibilidad aplicada al sistema productivo
A122: 119 | B122: TMV302 (LFP) | C122: Mantenimiento aeromecánico de aviones con motor de turbina | D122: 68 | E122: 35 | F122: 103 | G122: 20 | H122: 6 | I122: 14 | K122: 1428 - Técnicas digitales y sistemas de instrumentos electrónicos en aeromecánica | L122: 1433 - Prácticas de mantenimiento con elementos de aviónica y servicios de las aeronaves | M122: 1438 - Aerodinámica, estructuras y sistemas eléctricos y de aviónica de aviones con motor de turbina | N122: 1455 - Motores de turbinas de gas | O122: 1458 - Proyecto intermodular de mantenimiento aeromecánico de aviones con motor de turbina

Sheet Módulos (hidden)
A1: Código Ciclo | B1: Ciclo Formativo | C1: Código Módulo | D1: Módulo | F1: Curso | G1: Horas Semanales | H1: Horas Totales
A2: ADG201 (LFP) | B2: Gestión Administrativa | C2: 0156 | D2: Inglés Profesional (GM) | E2: =CONCATENATE(A2," - ",C2) -> ADG201 (LFP) - 0156 | F2: 1 | G2: 2 | H2: 67
A3: ADG201 (LFP) | B3: Gestión Administrativa | C3: 0437 | D3: Comunicación empresarial y atención al cliente | E3: =CONCATENATE(A3," - ",C3) -> ADG201 (LFP) - 0437 | F3: 1 | G3: 4 | H3: 133
A4: ADG201 (LFP) | B4: Gestión Administrativa | C4: 0438 | D4: Operaciones administrativas de compra-venta | E4: ADG201 (LFP) - 0438 | F4: 1 | G4: 4 | H4: 133
A5: ADG201 (LFP) | B5: Gestión Administrativa | C5: 0439 | D5: Empresa y Administración | E5: ADG201 (LFP) - 0439 | F5: 1 | G5: 4 | H5: 133
A6: ADG201 (LFP) | B6: Gestión Administrativa | C6: 0440 | D6: Tratamiento informático de la información | E6: ADG201 (LFP) - 0440 | F6: 1 | G6: 7 | H6: 233
A7: ADG201 (LFP) | B7: Gestión Administrativa | C7: 0441 | D7: Técnica Contable | E7: ADG201 (LFP) - 0441 | F7: 1 | G7: 4 | H7: 133
A8: ADG201 (LFP) | B8: Gestión Administrativa | C8: 1664 | D8: Digitalización aplicada a los sectores productivos (GM) | E8: ADG201 (LFP) - 1664 | F8: 1 | G8: 1 | H8: 33
A9: ADG201 (LFP) | B9: Gestión Administrativa | C9: 1709 | D9: Itinerario personal para la empleabilidad I | E9: ADG201 (LFP) - 1709 | F9: 1 | G9: 3 | H9: 100
A10: ADG201 (LFP) | B10: Gestión Administrativa | C10: A997 | D10: Tutoría I | E10: ADG201 (LFP) - A997 | F10: 1 | G10: 1 | H10: 33
A11: ADG201 (LFP) | B11: Gestión Administrativa | C11: 0442 | D11: Operaciones Administrativas de Recursos Humanos | E11: ADG201 (LFP) - 0442 | F11: 2 | G11: 5 | H11: 167
A12: ADG201 (LFP) | B12: Gestión Administrativa | C12: 0443 | D12: Tratamiento de la Documentación Contable | E12: ADG201 (LFP) - 0443 | F12: 2 | G12: 5 | H12: 167
A13: ADG201 (LFP) | B13: Gestión Administrativa | C13: 0446 | D13: Empresa en el aula | E13: ADG201 (LFP) - 0446 | F13: 2 | G13: 6 | H13: 200
A14: ADG201 (LFP) | B14: Gestión Administrativa | C14: 0448 | D14: Operaciones Auxiliares de Gestión de Tesorería | E14: ADG201 (LFP) - 0448 | F14: 2 | G14: 5 | H14: 167
A15: ADG201 (LFP) | B15: Gestión Administrativa | C15: 1708 | D15: Sostenibilidad aplicada al sistema productivo | E15: ADG201 (LFP) - 1708 | F15: 2 | G15: 1 | H15: 33
A16: ADG201 (LFP) | B16: Gestión Administrativa | C16: 1710 | D16: Itinerario personal para la empleabilidad II | E16: ADG201 (LFP) - 1710 | F16: 2 | G16: 2 | H16: 67
A17: ADG201 (LFP) | B17: Gestión Administrativa | C17: 1713 | D17: Proyecto Intermodular | E17: ADG201 (LFP) - 1713 | F17: 2 | G17: 2 | H17: 67
A18: ADG201 (LFP) | B18: Gestión Administrativa | C18: A996 | D18: Tutoría II | E18: ADG201 (LFP) - A996 | F18: 2 | G18: 1 | H18: 33
A19: ADG201 (LFP) | B19: Gestión Administrativa | C19: 0OPT | D19: Módulo profesional optativo | E19: ADG201 (LFP) - 0OPT | F19: 2 | G19: 3 | H19: 100
A20: ADG301 (LFP) | B20: Administración y Finanzas | C20: 0179 | D20: Inglés Profesional (GS) | E20: ADG301 (LFP) - 0179 | F20: 1 | G20: 2 | H20: 67
A21: ADG301 (LFP) | B21: Administración y Finanzas | C21: 0647 | D21: Gestión de la documentación jurídica y empresarial | E21: ADG301 (LFP) - 0647 | F21: 1 | G21: 3 | H21: 100
A22: ADG301 (LFP) | B22: Administración y Finanzas | C22: 0648 | D22: Recursos humanos y responsabilidad social corporativa | E22: ADG301 (LFP) - 0648 | F22: 1 | G22: 2 | H22: 67
A23: ADG301 (LFP) | B23: Administración y Finanzas | C23: 0649 | D23: Ofimática y proceso de la información | E23: ADG301 (LFP) - 0649 | F23: 1 | G23: 7 | H23: 233
A24: ADG301 (LFP) | B24: Administración y Finanzas | C24: 0650 | D24: Proceso integral de la actividad comercial | E24: ADG301 (LFP) - 0650 | F24: 1 | G24: 7 | H24: 233
A25: ADG301 (LFP) | B25: Administración y Finanzas | C25: 0651 | D25: Comunicación y atención al cliente | E25: ADG301 (LFP) - 0651 | F25: 1 | G25: 5 | H25: 167
A26: ADG301 (LFP) | B26: Administración y Finanzas | C26: 1665 | D26: Digitalización aplicada a los sectores productivos (GS) | E26: ADG301 (LFP) - 1665 | F26: 1 | G26: 1 | H26: 33
A27: ADG301 (LFP) | B27: Administración y Finanzas | C27: 1709 | D27: Itinerario personal para la empleabilidad I | E27: ADG301 (LFP) - 1709 | F27: 1 | G27: 3 | H27: 100
A28: ADG301 (LFP) | B28: Administración y Finanzas | C28: 0652 | D28: Gestión de recursos humanos | E28: ADG301 (LFP) - 0652 | F28: 2 | G28: 4 | H28: 133
A29: ADG301 (LFP) | B29: Administración y Finanzas | C29: 0653 | D29: Gestión financiera | E29: ADG301 (LFP) - 0653 | F29: 2 | G29: 4 | H29: 133
A30: ADG301 (LFP) | B30: Administración y Finanzas | C30: 0654 | D30: Contabilidad y fiscalidad | E30: ADG301 (LFP) - 0654 | F30: 2 | G30: 6 | H30: 200
A31: ADG301 (LFP) | B31: Administración y Finanzas | C31: 0655 | D31: Gestión logística y comercial | E31: ADG301 (LFP) - 0655 | F31: 2 | G31: 4 | H31: 133
A32: ADG301 (LFP) | B32: Administración y Finanzas | C32: 0656 | D32: Simulación empresarial | E32: ADG301 (LFP) - 0656 | F32: 2 | G32: 4 | H32: 133
A33: ADG301 (LFP) | B33: Administración y Finanzas | C33: 0657 | D33: Proyecto Intermodular de administración y finanzas | E33: ADG301 (LFP) - 0657 | F33: 2 | G33: 2 | H33: 67
A34: ADG301 (LFP) | B34: Administración y Finanzas | C34: 1708 | D34: Sostenibilidad aplicada al sistema productivo | E34: ADG301 (LFP) - 1708 | F34: 2 | G34: 1 | H34: 33
A35: ADG301 (LFP) | B35: Administración y Finanzas | C35: 1710 | D35: Itinerario personal para la empleabilidad II | E35: ADG301 (LFP) - 1710 | F35: 2 | G35: 2 | H35: 67
A36: ADG301 (LFP) | B36: Administración y Finanzas | C36: 0OPT | D36: Módulo profesional optativo | E36: ADG301 (LFP) - 0OPT | F36: 2 | G36: 3 | H36: 100
A37: ADG302 (LFP) | B37: Asistencia a la Dirección | C37: 0179 | D37: Inglés Profesional (GS) | E37: ADG302 (LFP) - 0179 | F37: 1 | G37: 2 | H37: 67
A38: ADG302 (LFP) | B38: Asistencia a la Dirección | C38: 0647 | D38: Gestión de la documentación jurídica y empresarial | E38: ADG302 (LFP) - 0647 | F38: 1 | G38: 3 | H38: 100
A39: ADG302 (LFP) | B39: Asistencia a la Dirección | C39: 0648 | D39: Recursos humanos y responsabilidad social corporativa | E39: ADG302 (LFP) - 0648 | F39: 1 | G39: 2 | H39: 67
A40: ADG302 (LFP) | B40: Asistencia a la Dirección | C40: 0649 | D40: Ofimática y proceso de la información | E40: ADG302 (LFP) - 0649 | F40: 1 | G40: 7 | H40: 233
A41: ADG302 (LFP) | B41: Asistencia a la Dirección | C41: 0650 | D41: Proceso integral de la actividad comercial | E41: ADG302 (LFP) - 0650 | F41: 1 | G41: 7 | H41: 233
A42: ADG302 (LFP) | B42: Asistencia a la Dirección | C42: 0651 | D42: Comunicación y atención al cliente | E42: ADG302 (LFP) - 0651 | F42: 1 | G42: 5 | H42: 167
A43: ADG302 (LFP) | B43: Asistencia a la Dirección | C43: 1665 | D43: Digitalización aplicada a los sectores productivos (GS) | E43: ADG302 (LFP) - 1665 | F43: 1 | G43: 1 | H43: 33
A44: ADG302 (LFP) | B44: Asistencia a la Dirección | C44: 1709 | D44: Itinerario personal para la empleabilidad I | E44: ADG302 (LFP) - 1709 | F44: 1 | G44: 3 | H44: 100
A45: ADG302 (LFP) | B45: Asistencia a la Dirección | C45: 0180 | D45: Segunda lengua extranjera | E45: ADG302 (LFP) - 0180 | F45: 2 | G45: 4 | H45: 133
A46: ADG302 (LFP) | B46: Asistencia a la Dirección | C46: 0661 | D46: Protocolo empresarial | E46: ADG302 (LFP) - 0661 | F46: 2 | G46: 6 | H46: 200
A47: ADG302 (LFP) | B47: Asistencia a la Dirección | C47: 0662 | D47: Organización de eventos empresariales | E47: ADG302 (LFP) - 0662 | F47: 2 | G47: 6 | H47: 200
A48: ADG302 (LFP) | B48: Asistencia a la Dirección | C48: 0663 | D48: Gestión avanzada de la información | E48: ADG302 (LFP) - 0663 | F48: 2 | G48: 6 | H48: 200
A49: ADG302 (LFP) | B49: Asistencia a la Dirección | C49: 0664 | D49: Proyecto Intermodular de asistencia a la dirección | E49: ADG302 (LFP) - 0664 | F49: 2 | G49: 2 | H49: 67
A50: ADG302 (LFP) | B50: Asistencia a la Dirección | C50: 1708 | D50: Sostenibilidad aplicada al sistema productivo | E50: ADG302 (LFP) - 1708 | F50: 2 | G50: 1 | H50: 33
A51: ADG302 (LFP) | B51: Asistencia a la Dirección | C51: 1710 | D51: Itinerario personal para la empleabilidad II | E51: ADG302 (LFP) - 1710 | F51: 2 | G51: 2 | H51: 67
A52: ADG302 (LFP) | B52: Asistencia a la Dirección | C52: 0OPT | D52: Módulo profesional optativo | E52: ADG302 (LFP) - 0OPT | F52: 2 | G52: 3 | H52: 100
A53: AFD201 (LFP) | B53: Guía en el Medio Natural y de Tiempo Libre | C53: 0156 | D53: Inglés Profesional (GM) | E53: AFD201 (LFP) - 0156 | F53: 1 | G53: 2 | H53: 67
A54: AFD201 (LFP) | B54: Guía en el Medio Natural y de Tiempo Libre | C54: 1325 | D54: Técnicas de equitación | E54: AFD201 (LFP) - 1325 | F54: 1 | G54: 3 | H54: 100
A55: AFD201 (LFP) | B55: Guía en el Medio Natural y de Tiempo Libre | C55: 1328 | D55: Atención a grupos | E55: AFD201 (LFP) - 1328 | F55: 1 | G55: 2 | H55: 67
A56: AFD201 (LFP) | B56: Guía en el Medio Natural y de Tiempo Libre | C56: 1329 | D56: Organización de itinerarios | E56: AFD201 (LFP) - 1329 | F56: 1 | G56: 3 | H56: 100
A57: AFD201 (LFP) | B57: Guía en el Medio Natural y de Tiempo Libre | C57: 1333 | D57: Guía de baja y media montaña | E57: AFD201 (LFP) - 1333 | F57: 1 | G57: 6 | H57: 200
A58: AFD201 (LFP) | B58: Guía en el Medio Natural y de Tiempo Libre | C58: 1334 | D58: Guía de bicicleta | E58: AFD201 (LFP) - 1334 | F58: 1 | G58: 6 | H58: 200
A59: AFD201 (LFP) | B59: Guía en el Medio Natural y de Tiempo Libre | C59: 1336 | D59: Técnicas de natación | E59: AFD201 (LFP) - 1336 | F59: 1 | G59: 3 | H59: 100
A60: AFD201 (LFP) | B60: Guía en el Medio Natural y de Tiempo Libre | C60: 1664 | D60: Digitalización aplicada a los sectores productivos (GM) | E60: AFD201 (LFP) - 1664 | F60: 1 | G60: 1 | H60: 33
A61: AFD201 (LFP) | B61: Guía en el Medio Natural y de Tiempo Libre | C61: 1709 | D61: Itinerario personal para la empleabilidad I | E61: AFD201 (LFP) - 1709 | F61: 1 | G61: 3 | H61: 100
A62: AFD201 (LFP) | B62: Guía en el Medio Natural y de Tiempo Libre | C62: A997 | D62: Tutoría I | E62: AFD201 (LFP) - A997 | F62: 1 | G62: 1 | H62: 33
A63: AFD201 (LFP) | B63: Guía en el Medio Natural y de Tiempo Libre | C63: 1327 | D63: Guía ecuestre | E63: AFD201 (LFP) - 1327 | F63: 2 | G63: 3 | H63: 100
A64: AFD201 (LFP) | B64: Guía en el Medio Natural y de Tiempo Libre | C64: 1335 | D64: Técnicas de tiempo libre | E64: AFD201 (LFP) - 1335 | F64: 2 | G64: 3 | H64: 100
A65: AFD201 (LFP) | B65: Guía en el Medio Natural y de Tiempo Libre | C65: 1337 | D65: Socorrismo en el medio natural | E65: AFD201 (LFP) - 1337 | F65: 2 | G65: 6 | H65: 200
A66: AFD201 (LFP) | B66: Guía en el Medio Natural y de Tiempo Libre | C66: 1338 | D66: Guía en el medio natural acuático | E66: AFD201 (LFP) - 1338 | F66: 2 | G66: 4 | H66: 133
A67: AFD201 (LFP) | B67: Guía en el Medio Natural y de Tiempo Libre | C67: 1339 | D67: Maniobras con cuerdas | E67: =CONCATENATE(A67," - ",C67) -> AFD201 (LFP) - 1339 | F67: 2 | G67: 5 | H67: 167
A68: AFD201 (LFP) | B68: Guía en el Medio Natural y de Tiempo Libre | C68: 1708 | D68: Sostenibilidad aplicada al sistema productivo | E68: AFD201 (LFP) - 1708 | F68: 2 | G68: 1 | H68: 33
A69: AFD201 (LFP) | B69: Guía en el Medio Natural y de Tiempo Libre | C69: 1710 | D69: Itinerario personal para la empleabilidad II | E69: AFD201 (LFP) - 1710 | F69: 2 | G69: 2 | H69: 67
A70: AFD201 (LFP) | B70: Guía en el Medio Natural y de Tiempo Libre | C70: 1713 | D70: Proyecto Intermodular | E70: AFD201 (LFP) - 1713 | F70: 2 | G70: 2 | H70: 67
A71: AFD201 (LFP) | B71: Guía en el Medio Natural y de Tiempo Libre | C71: A996 | D71: Tutoría II | E71: AFD201 (LFP) - A996 | F71: 2 | G71: 1 | H71: 33
A72: AFD201 (LFP) | B72: Guía en el Medio Natural y de Tiempo Libre | C72: 0OPT | D72: Módulo profesional optativo | E72: AFD201 (LFP) - 0OPT | F72: 2 | G72: 3 | H72: 100
A73: AFD301 (LFP) | B73: Enseñanza y Animación Sociodeportiva | C73: 0179 | D73: Inglés Profesional (GS) | E73: AFD301 (LFP) - 0179 | F73: 1 | G73: 2 | H73: 67
A74: AFD301 (LFP) | B74: Enseñanza y Animación Sociodeportiva | C74: 1124 | D74: Dinamización grupal | E74: AFD301 (LFP) - 1124 | F74: 1 | G74: 4 | H74: 133
A75: AFD301 (LFP) | B75: Enseñanza y Animación Sociodeportiva | C75: 1136 | D75: Valoración de la condición física e intervención en accidentes | E75: AFD301 (LFP) - 1136 | F75: 1 | G75: 6 | H75: 200
A76: AFD301 (LFP) | B76: Enseñanza y Animación Sociodeportiva | C76: 1138 | D76: Juegos y actividades físico-recreativas y de animación turística | E76: AFD301 (LFP) - 1138 | F76: 1 | G76: 5 | H76: 167
A77: AFD301 (LFP) | B77: Enseñanza y Animación Sociodeportiva | C77: 1139 | D77: Actividades físico-deportivas individuales | E77: AFD301 (LFP) - 1139 | F77: 1 | G77: 6 | H77: 200
A78: AFD301 (LFP) | B78: Enseñanza y Animación Sociodeportiva | C78: 1143 | D78: Metodología de la enseñanza de actividades físico-deportivas | E78: AFD301 (LFP) - 1143 | F78: 1 | G78: 3 | H78: 100
A79: AFD301 (LFP) | B79: Enseñanza y Animación Sociodeportiva | C79: 1665 | D79: Digitalización aplicada a los sectores productivos (GS) | E79: AFD301 (LFP) - 1665 | F79: 1 | G79: 1 | H79: 33
A80: AFD301 (LFP) | B80: Enseñanza y Animación Sociodeportiva | C80: 1709 | D80: Itinerario personal para la empleabilidad I | E80: AFD301 (LFP) - 1709 | F80: 1 | G80: 3 | H80: 100
A81: AFD301 (LFP) | B81: Enseñanza y Animación Sociodeportiva | C81: 1123 | D81: Actividades de ocio y tiempo libre | E81: AFD301 (LFP) - 1123 | F81: 2 | G81: 7 | H81: 233
A82: AFD301 (LFP) | B82: Enseñanza y Animación Sociodeportiva | C82: 1137 | D82: Planificación de la animación sociodeportiva | E82: AFD301 (LFP) - 1137 | F82: 2 | G82: 2 | H82: 67
A83: AFD301 (LFP) | B83: Enseñanza y Animación Sociodeportiva | C83: 1140 | D83: Actividades físico-deportivas de equipo | E83: AFD301 (LFP) - 1140 | F83: 2 | G83: 5 | H83: 167
A84: AFD301 (LFP) | B84: Enseñanza y Animación Sociodeportiva | C84: 1141 | D84: Actividades físico-deportivas de implementos | E84: AFD301 (LFP) - 1141 | F84: 2 | G84: 4 | H84: 133
A85: AFD301 (LFP) | B85: Enseñanza y Animación Sociodeportiva | C85: 1142 | D85: Actividades físico-deportivas para la inclusión social | E85: AFD301 (LFP) - 1142 | F85: 2 | G85: 4 | H85: 133
A86: AFD301 (LFP) | B86: Enseñanza y Animación Sociodeportiva | C86: 1144 | D86: Proyecto Intermodular de enseñanza y animación sociodeportiva | E86: AFD301 (LFP) - 1144 | F86: 2 | G86: 2 | H86: 67
A87: AFD301 (LFP) | B87: Enseñanza y Animación Sociodeportiva | C87: 1708 | D87: Sostenibilidad aplicada al sistema productivo | E87: AFD301 (LFP) - 1708 | F87: 2 | G87: 1 | H87: 33
A88: AFD301 (LFP) | B88: Enseñanza y Animación Sociodeportiva | C88: 1710 | D88: Itinerario personal para la empleabilidad II | E88: AFD301 (LFP) - 1710 | F88: 2 | G88: 2 | H88: 67
A89: AFD301 (LFP) | B89: Enseñanza y Animación Sociodeportiva | C89: 0OPT | D89: Módulo profesional optativo | E89: AFD301 (LFP) - 0OPT | F89: 2 | G89: 3 | H89: 100
A90: AFD302 (LFP) | B90: Acondicionamiento Físico | C90: 0017 | D90: Habilidades sociales | E90: AFD302 (LFP) - 0017 | F90: 1 | G90: 4 | H90: 133
A91: AFD302 (LFP) | B91: Acondicionamiento Físico | C91: 0179 | D91: Inglés Profesional (GS) | E91: AFD302 (LFP) - 0179 | F91: 1 | G91: 2 | H91: 67
A92: AFD302 (LFP) | B92: Acondicionamiento Físico | C92: 1136 | D92: Valoración de la condición física e intervención en accidentes | E92: AFD302 (LFP) - 1136 | F92: 1 | G92: 6 | H92: 200
A93: AFD302 (LFP) | B93: Acondicionamiento Físico | C93: 1149 | D93: Actividades básicas de acondicionamiento físico con soporte musical | E93: AFD302 (LFP) - 1149 | F93: 1 | G93: 4 | H93: 133
A94: AFD302 (LFP) | B94: Acondicionamiento Físico | C94: 1152 | D94: Técnicas de hidrocinesia | E94: AFD302 (LFP) - 1152 | F94: 1 | G94: 4 | H94: 133
A95: AFD302 (LFP) | B95: Acondicionamiento Físico | C95: 1153 | D95: Control postural, bienestar y mantenimiento funcional | E95: AFD302 (LFP) - 1153 | F95: 1 | G95: 6 | H95: 200
A96: AFD302 (LFP) | B96: Acondicionamiento Físico | C96: 16165 | D96: Digitalización aplicada a los sectores productivos (GS) | E96: AFD302 (LFP) - 16165 | F96: 1 | G96: 1 | H96: 33
A97: AFD302 (LFP) | B97: Acondicionamiento Físico | C97: 1709 | D97: Itinerario personal para la empleabilidad I | E97: AFD302 (LFP) - 1709 | F97: 1 | G97: 3 | H97: 100
A98: AFD302 (LFP) | B98: Acondicionamiento Físico | C98: 1148 | D98: Fitness en sala de entrenamiento polivalente | E98: AFD302 (LFP) - 1148 | F98: 2 | G98: 10 | H98: 333
A99: AFD302 (LFP) | B99: Acondicionamiento Físico | C99: 1150 | D99: Actividades especializadas de acondicionamiento físico con soporte musical | E99: AFD302 (LFP) - 1150 | F99: 2 | G99: 6 | H99: 200
A100: AFD302 (LFP) | B100: Acondicionamiento Físico | C100: 1151 | D100: Acondicionamiento físico en el agua | E100: AFD302 (LFP) - 1151 | F100: 2 | G100: 6 | H100: 200
A101: AFD302 (LFP) | B101: Acondicionamiento Físico | C101: 1154 | D101: Proyecto Intermodular de acondicionamiento físico | E101: AFD302 (LFP) - 1154 | F101: 2 | G101: 2 | H101: 67
A102: AFD302 (LFP) | B102: Acondicionamiento Físico | C102: 1708 | D102: Sostenibilidad aplicada al sistema productivo | E102: AFD302 (LFP) - 1708 | F102: 2 | G102: 1 | H102: 33
A103: AFD302 (LFP) | B103: Acondicionamiento Físico | C103: 1710 | D103: Itinerario personal para la empleabilidad II | E103: AFD302 (LFP) - 1710 | F103: 2 | G103: 2 | H103: 67
A104: AFD302 (LFP) | B104: Acondicionamiento Físico | C104: 0OPT | D104: Módulo profesional optativo | E104: AFD302 (LFP) - 0OPT | F104: 2 | G104: 3 | H104: 100
A105: AGA201 (LFP) | B105: Producción Agropecuaria | C105: 0156 | D105: Inglés Profesional (GM) | E105: AGA201 (LFP) - 0156 | F105: 1 | G105: 2 | H105: 67
A106: AGA201 (LFP) | B106: Producción Agropecuaria | C106: 0404 | D106: Fundamentos Agronómicos | E106: AGA201 (LFP) - 0404 | F106: 1 | G106: 6 | H106: 200
A107: AGA201 (LFP) | B107: Producción Agropecuaria | C107: 0405 | D107: Fundamentos Zootécnicos | E107: AGA201 (LFP) - 0405 | F107: 1 | G107: 4 | H107: 133
A108: AGA201 (LFP) | B108: Producción Agropecuaria | C108: 0407 | D108: Taller y Equipos de Tracción | E108: AGA201 (LFP) - 0407 | F108: 1 | G108: 4 | H108: 133
A109: AGA201 (LFP) | B109: Producción Agropecuaria | C109: 0409 | D109: Principios de Sanidad Vegetal | E109: AGA201 (LFP) - 0409 | F109: 1 | G109: 3 | H109: 100
A110: AGA201 (LFP) | B110: Producción Agropecuaria | C110: 0476 | D110: Producción Agrícola | E110: AGA201 (LFP) - 0476 | F110: 1 | G110: 6 | H110: 200
A111: AGA201 (LFP) | B111: Producción Agropecuaria | C111: 1664 | D111: Digitalización aplicada a los sectores productivos (GM) | E111: AGA201 (LFP) - 1664 | F111: 1 | G111: 1 | H111: 33
A112: AGA201 (LFP) | B112: Producción Agropecuaria | C112: 1709 | D112: Itinerario personal para la empleabilidad I | E112: AGA201 (LFP) - 1709 | F112: 1 | G112: 3 | H112: 100
A113: AGA201 (LFP) | B113: Producción Agropecuaria | C113: A997 | D113: Tutoría I | E113: AGA201 (LFP) - A997 | F113: 1 | G113: 1 | H113: 33
A114: AGA201 (LFP) | B114: Producción Agropecuaria | C114: 0408 | D114: Infraestructuras e Instalaciones Agrícolas | E114: AGA201 (LFP) - 0408 | F114: 2 | G114: 3 | H114: 100
A115: AGA201 (LFP) | B115: Producción Agropecuaria | C115: 0475 | D115: Implantación de Cultivos | E115: AGA201 (LFP) - 0475 | F115: 2 | G115: 6 | H115: 200
A116: AGA201 (LFP) | B116: Producción Agropecuaria | C116: 0477 | D116: Producción de Leche, Huevos y Animales para Vida | E116: AGA201 (LFP) - 0477 | F116: 2 | G116: 5 | H116: 167
A117: AGA201 (LFP) | B117: Producción Agropecuaria | C117: 0478 | D117: Producción de Carne y otras Producciones Ganaderas | E117: AGA201 (LFP) - 0478 | F117: 2 | G117: 4 | H117: 133
A118: AGA201 (LFP) | B118: Producción Agropecuaria | C118: 0479 | D118: Control Fitosanitario | E118: AGA201 (LFP) - 0479 | F118: 2 | G118: 3 | H118: 100
A119: AGA201 (LFP) | B119: Producción Agropecuaria | C119: 1708 | D119: Sostenibilidad aplicada al sistema productivo | E119: AGA201 (LFP) - 1708 | F119: 2 | G119: 1 | H119: 33
A120: AGA201 (LFP) | B120: Producción Agropecuaria | C120: 1710 | D120: Itinerario personal para la empleabilidad II | E120: AGA201 (LFP) - 1710 | F120: 2 | G120: 2 | H120: 67
A121: AGA201 (LFP) | B121: Producción Agropecuaria | C121: 1713 | D121: Proyecto Intermodular | E121: AGA201 (LFP) - 1713 | F121: 2 | G121: 2 | H121: 67
A122: AGA201 (LFP) | B122: Producción Agropecuaria | C122: A996 | D122: Tutoría II | E122: AGA201 (LFP) - A996 | F122: 2 | G122: 1 | H122: 33
A123: AGA201 (LFP) | B123: Producción Agropecuaria | C123: 0OPT | D123: Módulo profesional optativo | E123: AGA201 (LFP) - 0OPT | F123: 2 | G123: 3 | H123: 100
A124: AGA202 (LFP) | B124: Producción Agroecológica | C124: 0156 | D124: Inglés Profesional (GM) | E124: AGA202 (LFP) - 0156 | F124: 1 | G124: 2 | H124: 67
A125: AGA202 (LFP) | B125: Producción Agroecológica | C125: 0404 | D125: Fundamentos Agronómicos | E125: AGA202 (LFP) - 0404 | F125: 1 | G125: 6 | H125: 200
A126: AGA202 (LFP) | B126: Producción Agroecológica | C126: 0405 | D126: Fundamentos Zootécnicos | E126: AGA202 (LFP) - 0405 | F126: 1 | G126: 4 | H126: 133
A127: AGA202 (LFP) | B127: Producción Agroecológica | C127: 0406 | D127: Implantación de Cultivos Ecológicos | E127: AGA202 (LFP) - 0406 | F127: 1 | G127: 6 | H127: 200
A128: AGA202 (LFP) | B128: Producción Agroecológica | C128: 0407 | D128: Taller y Equipos de Tracción | E128: AGA202 (LFP) - 0407 | F128: 1 | G128: 4 | H128: 133
A129: AGA202 (LFP) | B129: Producción Agroecológica | C129: 0409 | D129: Principios de Sanidad Vegetal | E129: AGA202 (LFP) - 0409 | F129: 1 | G129: 3 | H129: 100
A130: AGA202 (LFP) | B130: Producción Agroecológica | C130: 1664 | D130: Digitalización aplicada a los sectores productivos (GM) | E130: AGA202 (LFP) - 1664 | F130: 1 | G130: 1 | H130: 33
A131: AGA202 (LFP) | B131: Producción Agroecológica | C131: 1709 | D131: Itinerario personal para la empleabilidad I | E131: =CONCATENATE(A131," - ",C131) -> AGA202 (LFP) - 1709 | F131: 1 | G131: 3 | H131: 100
A132: AGA202 (LFP) | B132: Producción Agroecológica | C132: A997 | D132: Tutoría I | E132: AGA202 (LFP) - A997 | F132: 1 | G132: 1 | H132: 33
A133: AGA202 (LFP) | B133: Producción Agroecológica | C133: 0408 | D133: Infraestructuras e Instalaciones Agrícolas | E133: AGA202 (LFP) - 0408 | F133: 2 | G133: 3 | H133: 100
A134: AGA202 (LFP) | B134: Producción Agroecológica | C134: 0410 | D134: Producción Vegetal Ecológica | E134: AGA202 (LFP) - 0410 | F134: 2 | G134: 7 | H134: 233
A135: AGA202 (LFP) | B135: Producción Agroecológica | C135: 0411 | D135: Producción Ganadera Ecológica | E135: AGA202 (LFP) - 0411 | F135: 2 | G135: 5 | H135: 167
A136: AGA202 (LFP) | B136: Producción Agroecológica | C136: 0412 | D136: Manejo Sanitario del Agrosistema | E136: AGA202 (LFP) - 0412 | F136: 2 | G136: 4 | H136: 133
A137: AGA202 (LFP) | B137: Producción Agroecológica | C137: 0413 | D137: Comercialización de Productos Agroecológicos | E137: AGA202 (LFP) - 0413 | F137: 2 | G137: 2 | H137: 67
A138: AGA202 (LFP) | B138: Producción Agroecológica | C138: 1708 | D138: Sostenibilidad aplicada al sistema productivo | E138: AGA202 (LFP) - 1708 | F138: 2 | G138: 1 | H138: 33
A139: AGA202 (LFP) | B139: Producción Agroecológica | C139: 1710 | D139: Itinerario personal para la empleabilidad II | E139: AGA202 (LFP) - 1710 | F139: 2 | G139: 2 | H139: 67
A140: AGA202 (LFP) | B140: Producción Agroecológica | C140: 1713 | D140: Proyecto Intermodular | E140: AGA202 (LFP) - 1713 | F140: 2 | G140: 2 | H140: 67
A141: AGA202 (LFP) | B141: Producción Agroecológica | C141: A996 | D141: Tutoría II | E141: AGA202 (LFP) - A996 | F141: 2 | G141: 1 | H141: 33
A142: AGA202 (LFP) | B142: Producción Agroecológica | C142: 0OPT | D142: Módulo profesional optativo | E142: AGA202 (LFP) - 0OPT | F142: 2 | G142: 3 | H142: 100
A143: AGA204 (LFP) | B143: Jardinería y Floristería | C143: 0156 | D143: Inglés Profesional (GM) | E143: AGA204 (LFP) - 0156 | F143: 1 | G143: 2 | H143: 67
A144: AGA204 (LFP) | B144: Jardinería y Floristería | C144: 0404 | D144: Fundamentos Agronómicos | E144: AGA204 (LFP) - 0404 | F144: 1 | G144: 6 | H144: 200
A145: AGA204 (LFP) | B145: Jardinería y Floristería | C145: 0407 | D145: Taller y Equipos de Tracción | E145: AGA204 (LFP) - 0407 | F145: 1 | G145: 4 | H145: 133
A146: AGA204 (LFP) | B146: Jardinería y Floristería | C146: 0409 | D146: Principios de Sanidad Vegetal | E146: AGA204 (LFP) - 0409 | F146: 1 | G146: 3 | H146: 100
A147: AGA204 (LFP) | B147: Jardinería y Floristería | C147: 0576 | D147: Implantación de jardines y zonas verdes | E147: AGA204 (LFP) - 0576 | F147: 1 | G147: 4 | H147: 133
A148: AGA204 (LFP) | B148: Jardinería y Floristería | C148: 0577 | D148: Mantenimiento y mejora de jardines y zonas verdes | E148: AGA204 (LFP) - 0577 | F148: 1 | G148: 6 | H148: 200
A149: AGA204 (LFP) | B149: Jardinería y Floristería | C149: 1664 | D149: Digitalización aplicada a los sectores productivos (GM) | E149: AGA204 (LFP) - 1664 | F149: 1 | G149: 1 | H149: 33
A150: AGA204 (LFP) | B150: Jardinería y Floristería | C150: 1709 | D150: Itinerario personal para la empleabilidad I | E150: AGA204 (LFP) - 1709 | F150: 1 | G150: 3 | H150: 100
A151: AGA204 (LFP) | B151: Jardinería y Floristería | C151: A997 | D151: Tutoría I | E151: AGA204 (LFP) - A997 | F151: 1 | G151: 1 | H151: 33
A152: AGA204 (LFP) | B152: Jardinería y Floristería | C152: 0408 | D152: Infraestructuras e Instalaciones Agrícolas | E152: AGA204 (LFP) - 0408 | F152: 2 | G152: 3 | H152: 100
A153: AGA204 (LFP) | B153: Jardinería y Floristería | C153: 0479 | D153: Control Fitosanitario | E153: AGA204 (LFP) - 0479 | F153: 2 | G153: 3 | H153: 100
A154: AGA204 (LFP) | B154: Jardinería y Floristería | C154: 0578 | D154: Producción de plantas y tepes en vivero | E154: AGA204 (LFP) - 0578 | F154: 2 | G154: 7 | H154: 233
A155: AGA204 (LFP) | B155: Jardinería y Floristería | C155: 0579 | D155: Composiciones florales y con plantas | E155: AGA204 (LFP) - 0579 | F155: 2 | G155: 4 | H155: 133
A156: AGA204 (LFP) | B156: Jardinería y Floristería | C156: 0580 | D156: Establecimientos de floristería | E156: AGA204 (LFP) - 0580 | F156: 2 | G156: 2 | H156: 67
A157: AGA204 (LFP) | B157: Jardinería y Floristería | C157: 0581 | D157: Técnicas de venta en jardinería y floristería | E157: AGA204 (LFP) - 0581 | F157: 2 | G157: 2 | H157: 67
A158: AGA204 (LFP) | B158: Jardinería y Floristería | C158: 1708 | D158: Sostenibilidad aplicada al sistema productivo | E158: AGA204 (LFP) - 1708 | F158: 2 | G158: 1 | H158: 33
A159: AGA204 (LFP) | B159: Jardinería y Floristería | C159: 1710 | D159: Itinerario personal para la empleabilidad II | E159: AGA204 (LFP) - 1710 | F159: 2 | G159: 2 | H159: 67
A160: AGA204 (LFP) | B160: Jardinería y Floristería | C160: 1713 | D160: Proyecto Intermodular | E160: AGA204 (LFP) - 1713 | F160: 2 | G160: 2 | H160: 67
A161: AGA204 (LFP) | B161: Jardinería y Floristería | C161: A996 | D161: Tutoría II | E161: AGA204 (LFP) - A996 | F161: 2 | G161: 1 | H161: 33
A162: AGA204 (LFP) | B162: Jardinería y Floristería | C162: 0OPT | D162: Módulo profesional optativo | E162: AGA204 (LFP) - 0OPT | F162: 2 | G162: 3 | H162: 100
A163: AGA205 (LFP) | B163: Aprovechamiento y Conservación del Medio Natural | C163: 0156 | D163: Inglés Profesional (GM) | E163: AGA205 (LFP) - 0156 | F163: 1 | G163: 2 | H163: 67
A164: AGA205 (LFP) | B164: Aprovechamiento y Conservación del Medio Natural | C164: 0404 | D164: Fundamentos Agronómicos | E164: AGA205 (LFP) - 0404 | F164: 1 | G164: 6 | H164: 200
A165: AGA205 (LFP) | B165: Aprovechamiento y Conservación del Medio Natural | C165: 0409 | D165: Principios de Sanidad Vegetal | E165: AGA205 (LFP) - 0409 | F165: 1 | G165: 3 | H165: 100
A166: AGA205 (LFP) | B166: Aprovechamiento y Conservación del Medio Natural | C166: 0832 | D166: Repoblaciones forestales y tratamientos selvícolas | E166: AGA205 (LFP) - 0832 | F166: 1 | G166: 6 | H166: 200
A167: AGA205 (LFP) | B167: Aprovechamiento y Conservación del Medio Natural | C167: 0836 | D167: Prevención de incendios forestales | E167: AGA205 (LFP) - 0836 | F167: 1 | G167: 2 | H167: 67
A168: AGA205 (LFP) | B168: Aprovechamiento y Conservación del Medio Natural | C168: 0837 | D168: Maquinaria e instalaciones forestales | E168: AGA205 (LFP) - 0837 | F168: 1 | G168: 6 | H168: 200
A169: AGA205 (LFP) | B169: Aprovechamiento y Conservación del Medio Natural | C169: 1664 | D169: Digitalización aplicada a los sectores productivos (GM) | E169: AGA205 (LFP) - 1664 | F169: 1 | G169: 1 | H169: 33
A170: AGA205 (LFP) | B170: Aprovechamiento y Conservación del Medio Natural | C170: 1709 | D170: Itinerario personal para la empleabilidad I | E170: AGA205 (LFP) - 1709 | F170: 1 | G170: 3 | H170: 100
A171: AGA205 (LFP) | B171: Aprovechamiento y Conservación del Medio Natural | C171: A997 | D171: Tutoría I | E171: AGA205 (LFP) - A997 | F171: 1 | G171: 1 | H171: 33
A172: AGA205 (LFP) | B172: Aprovechamiento y Conservación del Medio Natural | C172: 0479 | D172: Control Fitosanitario | E172: AGA205 (LFP) - 0479 | F172: 2 | G172: 3 | H172: 100
A173: AGA205 (LFP) | B173: Aprovechamiento y Conservación del Medio Natural | C173: 0833 | D173: Aprovechamiento del medio natural | E173: AGA205 (LFP) - 0833 | F173: 2 | G173: 6 | H173: 200
A174: AGA205 (LFP) | B174: Aprovechamiento y Conservación del Medio Natural | C174: 0834 | D174: Conservación de las especies cinegéticas y piscícolas | E174: AGA205 (LFP) - 0834 | F174: 2 | G174: 3 | H174: 100
A175: AGA205 (LFP) | B175: Aprovechamiento y Conservación del Medio Natural | C175: 0835 | D175: Producción de planta forestal en vivero | E175: AGA205 (LFP) - 0835 | F175: 2 | G175: 6 | H175: 200
A176: AGA205 (LFP) | B176: Aprovechamiento y Conservación del Medio Natural | C176: 0838 | D176: Uso público en espacios naturales | E176: AGA205 (LFP) - 0838 | F176: 2 | G176: 3 | H176: 100
A177: AGA205 (LFP) | B177: Aprovechamiento y Conservación del Medio Natural | C177: 1708 | D177: Sostenibilidad aplicada al sistema productivo | E177: AGA205 (LFP) - 1708 | F177: 2 | G177: 1 | H177: 33
A178: AGA205 (LFP) | B178: Aprovechamiento y Conservación del Medio Natural | C178: 1710 | D178: Itinerario personal para la empleabilidad II | E178: AGA205 (LFP) - 1710 | F178: 2 | G178: 2 | H178: 67
A179: AGA205 (LFP) | B179: Aprovechamiento y Conservación del Medio Natural | C179: 1713 | D179: Proyecto Intermodular | E179: AGA205 (LFP) - 1713 | F179: 2 | G179: 2 | H179: 67
A180: AGA205 (LFP) | B180: Aprovechamiento y Conservación del Medio Natural | C180: A996 | D180: Tutoría II | E180: AGA205 (LFP) - A996 | F180: 2 | G180: 1 | H180: 33
A181: AGA205 (LFP) | B181: Aprovechamiento y Conservación del Medio Natural | C181: 0OPT | D181: Módulo profesional optativo | E181: AGA205 (LFP) - 0OPT | F181: 2 | G181: 3 | H181: 100
A182: AGA302 (LFP) | B182: Gestión Forestal y del Medio Natural | C182: 0179 | D182: Inglés Profesional (GS) | E182: AGA302 (LFP) - 0179 | F182: 1 | G182: 2 | H182: 67
A183: AGA302 (LFP) | B183: Gestión Forestal y del Medio Natural | C183: 0013 | D183: Botánica agronómica | E183: AGA302 (LFP) - 0013 | F183: 1 | G183: 3 | H183: 100
A184: AGA302 (LFP) | B184: Gestión Forestal y del Medio Natural | C184: 0014 | D184: Topografía agraria | E184: AGA302 (LFP) - 0014 | F184: 1 | G184: 3 | H184: 100
A185: AGA302 (LFP) | B185: Gestión Forestal y del Medio Natural | C185: 0016 | D185: Maquinaria e instalaciones agroforestales | E185: AGA302 (LFP) - 0016 | F185: 1 | G185: 6 | H185: 200
A186: AGA302 (LFP) | B186: Gestión Forestal y del Medio Natural | C186: 0018 | D186: Gestión y organización del vivero forestal | E186: AGA302 (LFP) - 0018 | F186: 1 | G186: 3 | H186: 100
A187: AGA302 (LFP) | B187: Gestión Forestal y del Medio Natural | C187: 0019 | D187: Gestión de montes | E187: AGA302 (LFP) - 0019 | F187: 1 | G187: 5 | H187: 167
A188: AGA302 (LFP) | B188: Gestión Forestal y del Medio Natural | C188: 0017 | D188: Gestión de la conservación del medio natural | E188: AGA302 (LFP) - 0017 | F188: 1 | G188: 4 | H188: 133
A189: AGA302 (LFP) | B189: Gestión Forestal y del Medio Natural | C189: 1665 | D189: Digitalización aplicada a los sectores productivos (GS) | E189: AGA302 (LFP) - 1665 | F189: 1 | G189: 1 | H189: 33
A190: AGA302 (LFP) | B190: Gestión Forestal y del Medio Natural | C190: 0017 | D190: Itinerario personal para la empleabilidad I | E190: AGA302 (LFP) - 0017 | F190: 1 | G190: 3 | H190: 100
A191: AGA302 (LFP) | B191: Gestión Forestal y del Medio Natural | C191: 0692 | D191: Fitopatología | E191: AGA302 (LFP) - 0692 | F191: 2 | G191: 5 | H191: 167
A192: AGA302 (LFP) | B192: Gestión Forestal y del Medio Natural | C192: 0017 | D192: Técnicas de educación ambiental | E192: AGA302 (LFP) - 0017 | F192: 2 | G192: 4 | H192: 133
A193: AGA302 (LFP) | B193: Gestión Forestal y del Medio Natural | C193: 0810 | D193: Gestión de los aprovechamientos del medio forestal | E193: AGA302 (LFP) - 0810 | F193: 2 | G193: 5 | H193: 167
A194: AGA302 (LFP) | B194: Gestión Forestal y del Medio Natural | C194: 0812 | D194: Gestión cinegética | E194: AGA302 (LFP) - 0812 | F194: 2 | G194: 3 | H194: 100
A195: AGA302 (LFP) | B195: Gestión Forestal y del Medio Natural | C195: 0813 | D195: Gestión de la pesca continental | E195: =CONCATENATE(A195," - ",C195) -> AGA302 (LFP) - 0813 | F195: 2 | G195: 2 | H195: 67
A196: AGA302 (LFP) | B196: Gestión Forestal y del Medio Natural | C196: 0816 | D196: Defensa contra incendios forestales | E196: AGA302 (LFP) - 0816 | F196: 2 | G196: 3 | H196: 100
A197: AGA302 (LFP) | B197: Gestión Forestal y del Medio Natural | C197: 0817 | D197: Proyecto Intermodular de gestión forestal y conservación del medio | E197: AGA302 (LFP) - 0817 | F197: 2 | G197: 2 | H197: 67
A198: AGA302 (LFP) | B198: Gestión Forestal y del Medio Natural | C198: 1708 | D198: Sostenibilidad aplicada al sistema productivo | E198: AGA302 (LFP) - 1708 | F198: 2 | G198: 1 | H198: 33
A199: AGA302 (LFP) | B199: Gestión Forestal y del Medio Natural | C199: 1710 | D199: Itinerario personal para la empleabilidad II | E199: AGA302 (LFP) - 1710 | F199: 2 | G199: 2 | H199: 67
A200: AGA302 (LFP) | B200: Gestión Forestal y del Medio Natural | C200: 0OPT | D200: Módulo profesional optativo | E200: AGA302 (LFP) - 0OPT | F200: 2 | G200: 3 | H200: 100
... 2302 more rows
